{"text_format":"1","workbook":"xlsx","n_sheets":1,"sheets":["様式"],"not_rendered":{"charts":0,"images":0,"macros":1,"external_links":0,"defined_names":1,"comments":0,"pivot_tables":0},"unopened":[],"bounds":{"document_bytes":16777216,"sheet_cells":100000,"rows_first":2000,"rows_last":500,"rows_between":2000,"halvings":0,"cell_chars":16384,"cell_head_chars":4096},"cells_cut":0,"cells_raw":0,"read":"whole","date_system":"1900"}

{"sheet":"様式","index":0,"n_rows":247,"n_cols":24,"rows_kept":247,"cut":false,"hidden":false,"merged":[[193,13,195,13],[194,5,195,6],[194,7,195,7],[194,8,195,8],[194,11,195,11],[194,12,195,12],[192,0,192,2],[192,4,192,6],[193,0,195,0],[193,1,195,1],[193,2,195,2],[193,3,193,4],[193,5,193,8],[193,9,193,10],[193,11,193,12],[196,13,199,13],[198,3,198,4],[198,5,199,5],[198,6,199,6],[198,7,199,7],[198,8,199,8],[198,11,199,11],[198,12,199,12],[199,3,199,4],[196,0,199,0],[196,1,199,1],[196,2,199,2],[196,3,197,3],[196,4,197,4],[196,9,199,9],[196,10,199,10],[161,13,164,13],[163,3,163,4],[163,5,164,5],[163,6,164,6],[163,7,164,7],[163,8,164,8],[163,11,164,11],[163,12,164,12],[164,3,164,4],[161,0,164,0],[161,1,164,1],[161,2,164,2],[161,3,162,3],[161,4,162,4],[161,9,164,9],[161,10,164,10],[166,0,166,2],[158,13,160,13],[159,5,160,6],[159,7,160,7],[159,8,160,8],[159,11,160,11],[159,12,160,12],[157,0,157,2],[157,4,157,6],[158,0,160,0],[158,1,160,1],[158,2,160,2],[158,3,158,4],[158,5,158,8],[158,9,158,10],[158,11,158,12],[101,13,104,13],[103,3,103,4],[103,5,104,5],[103,6,104,6],[103,7,104,7],[103,8,104,8],[103,11,104,11],[103,12,104,12],[104,3,104,4],[85,0,88,0],[85,1,88,1],[85,2,88,2],[85,3,86,3],[85,4,86,4],[89,13,92,13],[91,3,91,4],[91,5,92,5],[91,6,92,6],[91,7,92,7],[91,8,92,8],[91,11,92,11],[91,12,92,12],[92,3,92,4],[89,3,90,3],[89,4,90,4],[89,9,92,9],[89,10,92,10],[101,0,104,0],[101,1,104,1],[101,2,104,2],[101,3,102,3],[101,4,102,4],[101,9,104,9],[101,10,104,10],[89,0,92,0],[89,1,92,1],[89,2,92,2],[93,0,96,0],[93,1,96,1],[93,2,96,2],[93,3,94,3],[93,4,94,4],[93,9,96,9],[93,10,96,10],[97,0,100,0],[97,1,100,1],[97,2,100,2],[97,3,98,3],[97,4,98,4],[97,9,100,9],[97,10,100,10],[84,3,84,4],[87,3,87,4],[87,5,88,5],[87,6,88,6],[87,7,88,7],[87,8,88,8],[87,11,88,11],[87,12,88,12],[88,3,88,4],[81,0,84,0],[81,1,84,1],[81,2,84,2],[81,3,82,3],[81,4,82,4],[81,9,84,9],[81,10,84,10],[85,13,88,13],[78,13,80,13],[79,5,80,6],[79,7,80,7],[79,8,80,8],[79,11,80,11],[79,12,80,12],[85,9,88,9],[85,10,88,10],[81,13,84,13],[83,3,83,4],[83,5,84,5],[83,6,84,6],[83,7,84,7],[83,8,84,8],[83,11,84,11],[83,12,84,12],[77,0,77,2],[77,4,77,6],[78,0,80,0],[78,1,80,1],[78,2,80,2],[78,3,78,4],[78,5,78,8],[78,9,78,10],[78,11,78,12],[2,0,2,10],[3,15,5,16],[4,0,4,2],[4,3,4,9],[5,0,5,2],[5,3,5,9],[17,13,19,13],[18,5,19,6],[18,7,19,7],[18,8,19,8],[18,11,19,11],[18,12,19,12],[16,0,16,2],[16,4,16,6],[17,0,19,0],[17,1,19,1],[17,2,19,2],[17,3,17,4],[17,5,17,8],[7,0,7,2],[7,4,7,6],[8,0,10,0],[8,1,10,1],[8,2,10,2],[20,0,23,0],[20,1,23,1],[20,2,23,2],[20,3,21,3],[20,4,21,4],[20,9,23,9],[20,10,23,10],[17,9,17,10],[17,11,17,12],[23,3,23,4],[20,13,23,13],[22,3,22,4],[22,5,23,5],[22,6,23,6],[22,7,23,7],[22,8,23,8],[22,11,23,11],[22,12,23,12],[44,0,47,0],[44,1,47,1],[44,2,47,2],[44,13,47,13],[46,3,46,4],[46,5,47,5],[46,6,47,6],[46,7,47,7],[46,8,47,8],[46,11,47,11],[46,12,47,12],[47,3,47,4],[44,3,45,3],[44,4,45,4],[44,9,47,9],[44,10,47,10],[61,0,61,2],[61,4,61,6],[62,0,64,0],[62,1,64,1],[62,2,64,2],[62,3,62,4],[62,5,62,8],[62,9,62,10],[73,0,76,0],[73,1,76,1],[73,2,76,2],[73,3,74,3],[73,4,74,4],[73,9,76,9],[73,10,76,10],[76,3,76,4],[62,11,62,12],[75,3,75,4],[75,5,76,5],[75,6,76,6],[75,7,76,7],[75,8,76,8],[75,11,76,11],[75,12,76,12],[65,0,68,0],[65,1,68,1],[65,2,68,2],[65,3,66,3],[65,4,66,4],[67,3,67,4],[68,3,68,4],[69,0,72,0],[69,1,72,1],[69,2,72,2],[69,3,70,3],[69,4,70,4],[71,3,71,4],[71,12,72,12],[72,3,72,4],[62,13,64,13],[63,5,64,6],[63,7,64,7],[63,8,64,8],[63,11,64,11],[63,12,64,12],[73,13,76,13],[65,9,68,9],[65,10,68,10],[65,13,68,13],[67,5,68,5],[67,6,68,6],[67,7,68,7],[67,8,68,8],[67,11,68,11],[67,12,68,12],[69,13,72,13],[69,9,72,9],[69,10,72,10],[71,5,72,5],[71,6,72,6],[71,7,72,7],[71,8,72,8],[71,11,72,11],[8,3,8,4],[8,5,8,8],[8,9,8,10],[8,11,8,12],[8,13,10,13],[9,5,10,6],[9,7,10,7],[9,8,10,8],[9,11,10,11],[9,12,10,12],[11,0,14,0],[11,1,14,1],[11,2,14,2],[11,3,12,3],[11,4,12,4],[11,9,14,9],[11,10,14,10],[11,13,14,13],[13,3,13,4],[13,5,14,5],[13,6,14,6],[13,7,14,7],[13,8,14,8],[13,11,14,11],[13,12,14,12],[14,3,14,4],[24,0,27,0],[24,1,27,1],[24,2,27,2],[24,3,25,3],[24,4,25,4],[24,9,27,9],[24,10,27,10],[24,13,27,13],[26,3,26,4],[26,5,27,5],[26,6,27,6],[26,7,27,7],[26,8,27,8],[26,11,27,11],[26,12,27,12],[27,3,27,4],[28,0,31,0],[28,1,31,1],[28,2,31,2],[28,3,29,3],[28,4,29,4],[28,9,31,9],[28,10,31,10],[28,13,31,13],[30,3,30,4],[30,5,31,5],[30,6,31,6],[30,7,31,7],[30,8,31,8],[30,11,31,11],[30,12,31,12],[31,3,31,4],[32,0,35,0],[32,1,35,1],[32,2,35,2],[32,3,33,3],[32,4,33,4],[32,9,35,9],[32,10,35,10],[32,13,35,13],[34,3,34,4],[34,5,35,5],[34,6,35,6],[34,7,35,7],[34,8,35,8],[34,11,35,11],[34,12,35,12],[35,3,35,4],[36,0,39,0],[36,1,39,1],[36,2,39,2],[36,3,37,3],[36,4,37,4],[36,9,39,9],[36,10,39,10],[36,13,39,13],[38,3,38,4],[38,5,39,5],[38,6,39,6],[38,7,39,7],[38,8,39,8],[38,11,39,11],[38,12,39,12],[39,3,39,4],[40,0,43,0],[40,1,43,1],[40,2,43,2],[40,3,41,3],[40,4,41,4],[40,9,43,9],[40,10,43,10],[40,13,43,13],[42,3,42,4],[42,5,43,5],[42,6,43,6],[42,7,43,7],[42,8,43,8],[42,11,43,11],[42,12,43,12],[43,3,43,4],[48,0,48,2],[48,4,48,6],[49,0,51,0],[49,1,51,1],[49,2,51,2],[49,3,49,4],[49,5,49,8],[49,9,49,10],[49,11,49,12],[49,13,51,13],[50,5,51,6],[50,7,51,7],[50,8,51,8],[50,11,51,11],[50,12,51,12],[56,0,59,0],[56,1,59,1],[56,2,59,2],[56,3,57,3],[56,4,57,4],[56,9,59,9],[56,10,59,10],[56,13,59,13],[58,3,58,4],[58,5,59,5],[58,6,59,6],[58,7,59,7],[58,8,59,8],[58,11,59,11],[58,12,59,12],[59,3,59,4],[52,0,55,0],[52,1,55,1],[52,2,55,2],[52,3,53,3],[52,4,53,4],[52,9,55,9],[52,10,55,10],[52,13,55,13],[54,3,54,4],[54,5,55,5],[54,6,55,6],[54,7,55,7],[54,8,55,8],[54,11,55,11],[54,12,55,12],[55,3,55,4],[93,13,96,13],[95,3,95,4],[95,5,96,5],[95,6,96,6],[95,7,96,7],[95,8,96,8],[95,11,96,11],[95,12,96,12],[96,3,96,4],[97,13,100,13],[99,3,99,4],[99,5,100,5],[99,6,100,6],[99,7,100,7],[99,8,100,8],[99,11,100,11],[99,12,100,12],[100,3,100,4],[126,13,129,13],[128,3,128,4],[128,5,129,5],[128,6,129,6],[128,7,129,7],[128,8,129,8],[128,11,129,11],[128,12,129,12],[129,3,129,4],[126,0,129,0],[126,1,129,1],[126,2,129,2],[126,3,127,3],[126,4,127,4],[126,9,129,9],[126,10,129,10],[110,13,113,13],[112,3,112,4],[112,5,113,5],[112,6,113,6],[112,7,113,7],[112,8,113,8],[112,11,113,11],[112,12,113,12],[113,3,113,4],[110,0,113,0],[110,1,113,1],[110,2,113,2],[110,3,111,3],[110,4,111,4],[110,9,113,9],[110,10,113,10],[114,0,117,0],[107,13,109,13],[108,5,109,6],[108,7,109,7],[108,8,109,8],[108,11,109,11],[108,12,109,12],[106,0,106,2],[106,4,106,6],[107,0,109,0],[107,1,109,1],[107,2,109,2],[107,3,107,4],[107,5,107,8],[107,9,107,10],[107,11,107,12],[114,1,117,1],[114,2,117,2],[114,3,115,3],[114,4,115,4],[114,9,117,9],[114,10,117,10],[114,13,117,13],[116,3,116,4],[116,5,117,5],[116,6,117,6],[116,7,117,7],[116,8,117,8],[116,11,117,11],[116,12,117,12],[117,3,117,4],[118,0,121,0],[118,1,121,1],[118,2,121,2],[118,3,119,3],[118,4,119,4],[118,9,121,9],[118,10,121,10],[118,13,121,13],[120,3,120,4],[120,5,121,5],[120,6,121,6],[120,7,121,7],[120,8,121,8],[120,11,121,11],[120,12,121,12],[121,3,121,4],[122,0,125,0],[122,1,125,1],[122,2,125,2],[122,3,123,3],[122,4,123,4],[122,9,125,9],[122,10,125,10],[122,13,125,13],[124,3,124,4],[124,5,125,5],[124,6,125,6],[124,7,125,7],[124,8,125,8],[124,11,125,11],[124,12,125,12],[125,3,125,4],[131,0,131,2],[131,4,131,6],[132,0,134,0],[132,1,134,1],[132,2,134,2],[132,3,132,4],[132,5,132,8],[132,9,132,10],[132,11,132,12],[132,13,134,13],[133,5,134,6],[133,7,134,7],[133,8,134,8],[133,11,134,11],[133,12,134,12],[135,0,138,0],[135,1,138,1],[135,2,138,2],[135,3,136,3],[135,4,136,4],[135,9,138,9],[135,10,138,10],[135,13,138,13],[137,3,137,4],[137,5,138,5],[137,6,138,6],[137,7,138,7],[137,8,138,8],[137,11,138,11],[137,12,138,12],[138,3,138,4],[139,0,142,0],[139,1,142,1],[139,2,142,2],[139,3,140,3],[139,4,140,4],[139,9,142,9],[139,10,142,10],[139,13,142,13],[141,3,141,4],[141,5,142,5],[141,6,142,6],[141,7,142,7],[141,8,142,8],[141,11,142,11],[141,12,142,12],[142,3,142,4],[143,0,146,0],[143,1,146,1],[143,2,146,2],[143,3,144,3],[143,4,144,4],[143,9,146,9],[143,10,146,10],[143,13,146,13],[145,3,145,4],[145,5,146,5],[145,6,146,6],[145,7,146,7],[145,8,146,8],[145,11,146,11],[145,12,146,12],[146,3,146,4],[148,0,148,2],[148,4,148,6],[149,0,151,0],[149,1,151,1],[149,2,151,2],[149,3,149,4],[149,5,149,8],[149,9,149,10],[149,11,149,12],[149,13,151,13],[150,5,151,6],[150,7,151,7],[150,8,151,8],[150,11,151,11],[150,12,151,12],[152,0,155,0],[152,1,155,1],[152,2,155,2],[152,3,153,3],[152,4,153,4],[152,9,155,9],[152,10,155,10],[152,13,155,13],[154,3,154,4],[154,5,155,5],[154,6,155,6],[154,7,155,7],[154,8,155,8],[154,11,155,11],[154,12,155,12],[155,3,155,4],[166,4,166,6],[167,0,169,0],[167,1,169,1],[167,2,169,2],[167,3,167,4],[167,5,167,8],[167,9,167,10],[167,11,167,12],[167,13,169,13],[168,5,169,6],[168,7,169,7],[168,8,169,8],[168,11,169,11],[168,12,169,12],[170,0,173,0],[170,1,173,1],[170,2,173,2],[170,3,171,3],[170,4,171,4],[170,9,173,9],[170,10,173,10],[170,13,173,13],[172,3,172,4],[172,5,173,5],[172,6,173,6],[172,7,173,7],[172,8,173,8],[172,11,173,11],[172,12,173,12],[173,3,173,4],[175,0,175,2],[175,4,175,6],[176,0,178,0],[176,1,178,1],[176,2,178,2],[176,3,176,4],[176,5,176,8],[176,9,176,10],[176,11,176,12],[176,13,178,13],[177,5,178,6],[177,7,178,7],[177,8,178,8],[177,11,178,11],[177,12,178,12],[179,0,182,0],[179,1,182,1],[179,2,182,2],[179,3,180,3],[179,4,180,4],[179,9,182,9],[179,10,182,10],[179,13,182,13],[181,3,181,4],[181,5,182,5],[181,6,182,6],[181,7,182,7],[181,8,182,8],[181,11,182,11],[181,12,182,12],[182,3,182,4],[183,0,183,2],[183,4,183,6],[184,0,186,0],[184,1,186,1],[184,2,186,2],[184,3,184,4],[184,5,184,8],[184,9,184,10],[184,11,184,12],[184,13,186,13],[185,5,186,6],[185,7,186,7],[185,8,186,8],[185,11,186,11],[185,12,186,12],[187,0,190,0],[187,1,190,1],[187,2,190,2],[187,3,188,3],[187,4,188,4],[187,9,190,9],[187,10,190,10],[187,13,190,13],[189,3,189,4],[189,5,190,5],[189,6,190,6],[189,7,190,7],[189,8,190,8],[189,11,190,11],[189,12,190,12],[190,3,190,4]]}
["  "]
[]
["主要事務事業戦略シート"]
[]
["局・区の使命",null,null,"道路、河川、下水道などの生活基盤整備及び適正な管理を行い、将来にわたって安全・安心・快適に生活できるまちづくりを進めます。"]
["事業選択・重点化・見直しの考え方",null,null,"　地震・風水害等へ備えた防災・減災対策、地域力を支える社会インフラの効果的な維持管理と次世代に向けた着実な整備、オリンピック・パラリンピックの開催を視野に加え、より安全な移動を確保するための施設整備を重点的に進める。これにより、「安全・安心なまち」、「生産性の向上による経済成長が期待できるまち」を目指す。\n　重点化する事業（分野）：防災・減災対策、社会インフラの維持管理、交通安全、道路ネットワークの形成\n　見直しする（予定）の事業： 道路整備ビジョンの策定、橋りょう維持（モノレールインフラ修繕計画の更新）"]
[]
["施策",null,null,"1-3-3","良好な生活環境の確保",null,null,"下水道事業会計"]
["No.","新規","事務事業（業務）名","事務事業（業務）概要",null,"現状分析",null,null,null,"課題抽出",null,"今後の方向性",null,"所管課"]
[null,null,null,"目標（目的）","主な内容","事務事業（業務）に\n必要な行政資源",null,"コスト換算\n（単位：百万円）","行政コストの合計額\n（単位：百万円）","主な実績・効果","分析・評価","改善・改革の\n手法","今後の方向性"]
[null,null,null,"【（事務事業（業務）を行い）誰（何）が、どのような状態になることを目指すのか】","【サービス等の提供内容や提供先】",null,null,null,null,"【利用者数・件数等】","【現在どのような状態で、どのような課題があるのか】"]
["1",null,"海辺の水質保全","・高度処理施設を整備し、下水処理水に含まれる窒素、りんを除去することにより、閉鎖性水域である東京湾の富栄養化を防止し、海辺の水質改善を図る。\n・平成32年度までに、高度処理人口普及率を44.7%にする。（千葉県花見川終末及び第二終末処理場の高度処理施設整備を含む）","（提供内容）\n浄化センターにおける高度処理施設の整備\n・中央浄化センターの高度処理施設の整備\n（1/3系列、24,680㎥/日）\n※平成27年度～平成32年度事業\n\n（提供先）\n海辺の利用者","ヒト","職員4.91人\n（正規4.50人、非常勤0.41人）",41,{"$f":"SUM(H12:H15)","v":1983},"・南部浄化センター全体で187,400㎥/日の施設が高度処理として稼働中\n\n・高度処理人口普及率の推移\n　平成27年度末　38.9%\n　平成28年度末　40.6%\n　平成29年度末　40.6%\n\n高度処理施設の整備を計画的に進めることにより、海辺の水質改善を図ることができる。","「東京湾流域別下水道整備総合計画（千葉県）」及び「東京湾再生のための行動計画（国・協議会）」において、下水道が担うべき高度処理水質のレベルが設定されているため、高度処理施設の整備を進める必要がある。\n平成27年度に中央浄化センターにおいて高度処理施設の整備に着手し、平成32年度完成を目指し事業は順調に進捗しており、平成32年度末には、高度処理人口普及率44.7%となる。\n引き続き事業の推進を図るため、より一層の財源確保（国費）と経費の節減に努めていく必要がある。","② 課題抑制","最新の工法や材料を取り入れることなどにより、更なる建設コストの低減を図る。","下水道計画課\n下水道施設建設課"]
[null,null,null,null,null,"モノ","なし",0,"＜参考＞\n前年度決算額"]
[null,null,null,"他都市等の状況",null,"カネ","歳出予算額\n1,942百万円\n【主なもの】\n水処理施設建設工事\n請負費\n1,550百万円",1942,"歳出決算額　1,716百万円"]
[null,null,null,"東京湾を放流先とする他都市の高度処理人口普及率\n・東京都区部：17.9%\n・横浜市：46.8%\n・川崎市：27.4%\n（平成28年度末）"]
[]
["施策",null,null,"4-1-1",{"$f":"IF(D17=\"\",\"←施策番号を選択してください。\",VLOOKUP(D17,W$160:X$247,2,1))","v":"防災対策の推進"},null,null,"一般会計"]
["No.","新規","事務事業（業務）名","事務事業（業務）概要",null,"現状分析",null,null,null,"課題抽出",null,"今後の方向性",null,"所管課"]
[null,null,null,"目標（目的）","主な内容","事務事業（業務）に\n必要な行政資源",null,"コスト換算\n（単位：百万円）","行政コストの合計額\n（単位：百万円）","主な実績・効果","分析・評価","改善・改革の\n手法","今後の方向性"]
[null,null,null,"【（事務事業（業務）を行い）誰（何）が、どのような状態になることを目指すのか】","【サービス等の提供内容や提供先】",null,null,null,null,"【利用者数・件数等】","【現在どのような状態で、どのような課題があるのか】"]
["1",null,"橋りょう耐震化","道路の利用者が、災害等の緊急時に輸送路や避難路として安全に通行できる。","（提供内容）\n耐震化の必要がある橋梁139橋の耐震補強\n\n（提供先）\n道路の利用者","ヒト","職員2.19人\n（うち正規2.19人）",19,{"$f":"SUM(H21:H24)","v":594},"全体計画139橋のうち134橋完了（平成29年度末）","緊急輸送道路に関する橋梁の耐震化が平成26年度に完了し、現在は、鉄道を跨ぐ橋梁の耐震化を実施しているが、高額な事業費が課題となっている。\nまた、鉄道を跨ぐ橋梁の事業実施に際しては、事業者との協議に時間を要し、スケジュールどおり進まないことが課題となっている。\n引き続き事業の推進を図るため、より一層の財源確保（国費）と経費の節減に努めていく必要がある。","① 調達改革","橋梁補修と耐震補強の一体施工による仮設費用の縮減を行いコスト低減を図る。","土木保全課"]
[null,null,null,null,null,"モノ","―","―","＜参考＞\n前年度決算額",null,null,"② 課題抑制","最新の工法や材料を取り入れることなどにより、更なる建設コストの低減を図る。"]
[null,null,null,"他都市等の状況",null,"カネ","歳出予算額575百万円\n（うち一般財源1百万円）\n【主なもの】\n工事請負費557百万円\n委託料         13百万円",575,"歳出決算額521百万円\n（うち一般財源\n                   1百万円）"]
[]
["2",null,"河川の改修","河川を改修することにより、氾濫による被害や流域内の浸水被害を軽減する。\n\n坂月川\n 10年に1回程度の降雨に対応\n\n支川都川\n 10年に1回程度の降雨に対応","（提供内容）\n二級河川坂月川の改修\n　L=2,926m\n\n二級河川支川都川\n　　L=3,540m\n\n（提供先）\n流域内の市民及び河川の利用者","ヒト","職員8.10人\n（正規7.30人、非常勤等0.80人）",64,{"$f":"SUM(H25:H28)","v":324},"改修状況　（平成29年度末）\n・坂月川 2,440m/2,926m=83%\n\n各「河川整備計画」に基づき、河川改修を進めており、河川の氾濫による被害や流域内の浸水被害が軽減されている。\nまた、多自然川づくりによる河川改修で、水辺環境の保全が図られている。\n","効率的に事業効果を発現させるため、下流部の河川の流下能力に併せ、段階的に整備を進めており、河川の氾濫による被害や流域内の浸水被害の早期軽減に取り組んでいる。\nまた、改修後も流下能力や施設機能を確保するため、維持管理を適正に行うなど、安心・安全の確保に努めている。\n引き続き事業の推進を図るため、より一層の財源の確保（国費）と経費の節減に努めていく必要がある。","② 課題抑制","最新の工法や材料を取り入れることなどにより、更なる建設コストの低減を図る。","都市河川課"]
[null,null,null,null,null,"モノ","－",0,"＜参考＞\n前年度決算額"]
[null,null,null,"他都市等の状況",null,"カネ","歳出予算額\n260百万円\n（うち一般財源105百万円）\n【主なもの】\n工事請負費86百万円\n　河道築造工事ほか",260,"歳出決算額\n230百万円\n（うち一般財源86百万円）"]
[null,null,null,"H29年度に河川事業を実施している政令都市\n：18政令都市"]
["3",null,"橋梁架替","橋梁を架け替えることにより、耐震性が強化され防災力が向上するとともに、歩道の設置や車道の拡幅を行うことで、道路利用者が安心して安全に道路等を利用することができる。","（提供内容）\n千葉市橋梁長寿命化修繕計画に基づく橋梁の架替（２橋）\n\n・柏井橋\n・亥鼻橋\n\n（提供先）\n道路の利用者","ヒト","職員2.39人\n（正規2.39人）",20,{"$f":"SUM(H29:H32)","v":1031},"・実施状況（平成29年度末）\n柏井橋\n　既設橋（上部）撤去完了\n　既設橋（下部）撤去中\n亥鼻橋\n　既設橋撤去完了\n　下部工（橋台、橋脚）築造中\n\n","・橋梁の長寿命化を図り、予算の平準化と維持管理コストの縮減を行う、千葉市橋梁長寿命化修繕計画に基づき、架け替え時期を迎えた橋梁の架け換えを進めており、概ね計画どおり進捗している。\n　柏井橋：平成32年度供用予定\n　亥鼻橋：平成33年度供用予定\n\n・引き続き事業の推進を図るため、より一層の財源確保（国費）と経費の削減に努めていく必要がある。","② 課題抑制","最新の工法や材料を取り入れることなどにより、さらなる建設コストの低減を図る。","道路建設課"]
[null,null,null,null,null,"モノ","－","－","＜参考＞\n前年度決算額"]
[null,null,null,"他都市等の状況",null,"カネ","歳出予算額1,011百万円\n（うち一般財源95百万円）\n【主なもの】\n工事請負費952百万円",1011,"歳出決算額257百万円（うち一般財源9百万円）"]
[null,null,null,"－"]
["4","●","都市下水路の機能向上","都市下水路の機能向上を図ることにより、流域内の浸水被害を軽減することが出来る。","（提供内容）\n調整池及び都市下水路の機能向上\n\n整備中の路線\n・東寺山調整池\n　　（六方都市下水路）\n・浜田川都市下水路\n\n（提供先）\n流域内の市民\n\n","ヒト","職員0.65人\n（正規0.65人）",6,{"$f":"SUM(H33:H36)","v":46},"市内の9都市下水路はこれまでの整備により、ほぼ概成している。","六方都市下水路流域である、みつわ台地区における浸水被害の軽減については、「千葉市雨水対策重点地区整備基本方針」により対策の強化が位置づけられたところであり、東寺山調整池の機能向上が有効である。\n\n浜田川都市下水路は、一部未買収地があり、都市下水路の断面を縮小し仮設鋼矢板護岸で供用しているため、用地を取得し護岸の本施工を実施する必要がある。引き続き、事業の推進を図るため、より一層の財源確保と経費の節減に努めていく必要がある。\n","② 課題抑制","最新の工法や材料を取り入れることなどにより、更なる建設コストの低減を図る。","都市河川課"]
[null,null,null,null,null,"モノ","－",0,"＜参考＞\n前年度決算額"]
[null,null,null,"他都市等の状況",null,"カネ","歳出予算額\n40百万円\n（うち一般財源8百万円）\n【主なもの】\n・工事請負費33百万円\n　東寺山調整池\n・用地取得費等3百万円\n　浜田川都市下水路",40,"歳出決算額8百万円\n（うち一般財源8百万円）\n※他市事業負担金を除く"]
[]
["5",null,"排水施設の整備","排水路を整備することにより、流域内の浸水被害を軽減することが出来る。","（提供内容）\n幹線排水路及び一般排水路の整備\n\n整備中の路線\n　・高田排水路東部支線\n　・辺田排水路\n　・宇那谷２号排水路\n及び一般排水路の整備\n\n（提供先）\n流域内の市民\n\n","ヒト","職員3.20人\n（正規3.20人）",26,{"$f":"SUM(H37:H40)","v":148},"幹線排水路\n整備状況　（平成29年度末）\n・高田排水路東部支線\n　2,159m/2,396m=90%\n・辺田排水路\n　263m/460m=57%\n\n市全体\n整備状況　（平成29年度末）\n・幹線排水路　L= 65.7km\n・一般排水路　L=296.8km\n\n\n過去に大規模な浸水被害が発生している箇所について、計画的に事業を推進しており、確実に効果が得られている。\n","深刻な浸水被害が発生している箇所の排水路整備を重点的に推進することにより、大規模な浸水被害を効果的かつ早期に軽減している。\n引き続き事業の推進を図るため、より一層の経費の節減に努めていく必要がある。","② 課題抑制","最新の工法や材料を取り入れることなどにより、更なる建設コストの低減を図る。","都市河川課"]
[null,null,null,null,null,"モノ","－",0,"＜参考＞\n前年度決算額"]
[null,null,null,"他都市等の状況",null,"カネ","歳出予算額\n122百万円\n（うち一般財源8百万円）\n【主なもの】\n・工事請負費68百万円\n　高田排水路東部支線ほか\n・用地取得費20百万円\n　宇那谷２号排水路",122,"歳出決算額\n94百万円\n（うち一般財源24百万円）"]
[]
["6",null,"急傾斜地崩壊防止工事の推進","崩壊の危険性が高い崖地を急傾斜地崩壊危険区域に指定し、崩壊防止工事を進めることにより、市民の生命を保護することが出来る。","（提供内容）\n崩壊防止工事の推進\n\n整備中の箇所\n　・宮崎町\n　・大宮町\n　・長作町\n\n（提供先）\n急傾斜地崩壊危険区域内の市民","ヒト","職員2.85人\n（正規2.85人）",23,{"$f":"SUM(H41:H44)","v":98},"現在施工箇所（市事業）\n整備状況　（平成29年度末）\n・宮崎町　65m/115m=57%\n　　施工予定年度 H25～H30\n　\n市全体\n整備状況　（平成29年度末）\n25箇所/96箇所=26%\n・市事業　L= 1,346m\n・県事業　L= 3,177m\n\n\n県の「急傾斜地崩壊対策要領」及び市の「指針」に基づき、崩壊の危険性が高い崖地について、順次崩壊防止施設の整備を進めることにより、市民から急傾斜地の崩壊による被災のリスクを軽減している。","崩壊の危険性が高い崖地について、早期に対策を講じることにより、市民の生命を保護することができる。\n市内の美浜区を除く５区には、対策が必要な急傾斜地が現在も多数あることから、引き続き事業の推進を図るため、より一層の財源の確保（県費）と経費の節減に努めていく必要がある。\n","② 課題抑制","最新の工法や材料を取り入れることなどにより、更なる建設コストの低減を図る。","都市河川課"]
[null,null,null,null,null,"モノ","－",0,"＜参考＞\n前年度決算額"]
[null,null,null,"他都市等の状況",null,"カネ","歳出予算額\n75百万円\n（うち一般財源9百万円）\n【主なもの】\n・工事請負費54百万円\n　宮崎町2、大宮町、\n　長作町13",75,"歳出決算額\n55百万円\n（うち一般財源0百万円）"]
[]
["7",null,"電線共同溝整備","　緊急輸送道路等の電柱をなくすことで、災害時の電柱倒壊による道路の封鎖がなくなり、道路の利用者が、安全で安心して通行できる。","（提供内容）\n緊急輸送道路等における電線共同溝の整備\n\n（提供先）\n道路の利用者\n沿道の電力等受給者","ヒト","職員1.44人\n（うち正規1.44人）",13,{"$f":"SUM(H45:H48)","v":85},"道路特定事業計画における電線共同溝整備延長\nL=24.3km（整備済）／27.2km（計画）（整備率89%）（平成29年度末）","バリアフリー経路における整備対象路線の電線共同溝整備について、約９割の整備が完了したことから、今後は、大規模災害に対する都市防災機能の向上を図るため、緊急輸送道路及び緊急輸送道路と災害拠点病院を連絡する路線を優先し整備を進めることとしているが、多額な事業費を要すること、また、占用予定者や沿道住民等との調整に時間を要することが課題となっている。\n引き続き事業の推進を図るため、より一層の財源の確保（国費）と経費の節減に努めていく必要がある。","② 課題抑制","最新の工法や材料を取り入れることなどにより、更なる建設コストの低減を図る。","土木保全課"]
[null,null,null,null,null,"モノ","なし",null,"＜参考＞\n前年度決算額"]
[null,null,null,"他都市等の状況",null,"カネ","歳出予算額　  72百万円\n（うち一般財源  0百万円）\n【主なもの】\n委託料　         72百万円",72,"歳出決算額　371百万円\n（うち一般財源　18百万円）\n\n"]
[]
["施策",null,null,"4-1-1",{"$f":"IF(D49=\"\",\"←施策番号を選択してください。\",VLOOKUP(D49,W212:X270,2,1))","v":"防災対策の推進"},null,null,"下水道事業会計"]
["No.","新規","事務事業（業務）名","事務事業（業務）概要",null,"現状分析",null,null,null,"課題抽出",null,"今後の方向性",null,"所管課"]
[null,null,null,"目標（目的）","主な内容","事務事業（業務）に\n必要な行政資源",null,"コスト換算\n（単位：百万円）","行政コストの合計額\n（単位：百万円）","主な実績・効果","分析・評価","改善・改革の\n手法","今後の方向性"]
[null,null,null,"【（事務事業（業務）を行い）誰（何）が、どのような状態になることを目指すのか】","【サービス等の提供内容や提供先】",null,null,null,null,"【利用者数・件数等】","【現在どのような状態で、どのような課題があるのか】"]
["1",null,"浸水被害の軽減と対策の強化","・雨水管渠や雨水浸透施設を整備することにより、台風や局地的な大雨などから市民の生命や財産を守る。\n・平成32年度までに、過去に浸水被害が発生した40地区について、被害の軽減を図る。\n・平成49年度までに、浸水リスクや都市機能の集積度が高い重点地区（13地区）について、雨水対策の更なる強化を図る。\n・地域住民による自助的な雨水対策を推進することにより、浸水被害の軽減を図る。","（提供内容）\n・雨水管渠等の整備\n・雨水浸透施設（浸透桝、浸透トレンチ等）の整備\n・防水板設置や一体として行う関連工事に係る経費の1/2を助成する。（上限75万円）\n\n（提供先）\n・浸水被害の発生した地域の住民及び利用者","ヒト","職員15.70人\n（正規14.70人、非常勤1.00人）",118,{"$f":"SUM(H53:H56)","v":2358},"・雨水整備箇所の推移\n　平成27年度末　18地区完了\n　平成28年度末　19地区完了\n　平成29年度末　28地区完了\n\n・重点地区の設定\n\n・防水板設置工事助成\n（H23創設）\n　累計件数：27件\n　助成額：11百万円\n\n多大な費用と時間を費やす大規模な対策施設ではなく、最小限の費用で早期に効果が得られるよう公園・学校などの公共用地に貯留施設や貯留浸透施設の設置を行うなど対策施設の分散化や段階的整備、防水板設置助成制度の促進など、効率的に事業を進めることにより、過去に浸水被害が発生した箇所において、被害軽減が確実に図られている。","重点地区の整備については、「千葉市雨水対策重点地区整備基本方針」に基づき、今後20年間で確実に実施していく必要があることから、事業の推進を図るため、より一層の財源確保（国費）と経費の節減に努めていく必要がある。","② 課題抑制","最新の工法や材料を取り入れることなどにより、更なる建設コストの低減を図る。","雨水対策課"]
[null,null,null,null,null,"モノ","なし",0,"＜参考＞\n前年度決算額"]
[null,null,null,"他都市等の状況",null,"カネ","歳出予算額\n2,240百万円\n【主なもの】\n排水施設建設等工事\n請負費\n2,023百万円",2240,"歳出決算額　1,257百万円"]
[null,null,null,"防水板等の設置助成制度がある政令都市：東京都（4区）、仙台市、新潟市、（その他一般市等：19市町）"]
["2",null,"地震時における下水道機能の確保","・管渠及び処理場・ポンプ場の耐震化を図ることにより、地震発生時の下水道の流下機能や処理機能を確保する。\n・千葉市下水道総合地震対策計画（H29～H33）に基づき、平成33年度までに、下水道管渠耐震化率を62.2％にする。\n・大規模地震の発生に備えるため、避難所にマンホールトイレを平成35年度までに167箇所設置する。","（提供内容）\n主要な下水道管渠739km及び浄化センター・ポンプ場施設の耐震化、小学校などの避難所へマンホールトイレの設置\n・南部浄化センターにおける放流渠の耐震化\n・マンホールトイレの設置167箇所\n\n（提供先）\n公共下水道及び道路、避難所の利用者","ヒト","職員11.71人\n（正規10.95人、非常勤0.76人）",93,{"$f":"SUM(H57:H60)","v":2325},"・下水道管渠耐震化率の推移\n　平成26年度末 42.1%(311km)\n　平成27年度末 45.5%(336km)\n　平成28年度末 47.4%(350km)\n　平成29年度末 49.2%(364km)\n\n・南部浄化センター施設の耐震化：継続中\n ・ポンプ場施設の耐震化：5箇所\n ・マンホールトイレの設置：58箇所\n\n下水道施設の耐震化を計画的に進めることにより、地震発生時においても、下水道の流下機能や処理機能を確保することができる。\n","「千葉市下水道総合地震対策計画（H29～H33）」に基づき、主要な管渠及び処理場・ポンプ場の耐震化を図っており、耐震化率は確実に向上している。\n今後も引続き、地震対策事業を推進する必要があるが、マンホールトイレについては、災害時のトイレ対策として極めて有効な施設であることが熊本地震において、実証されたところであり、国においても支援策の強化を図るなど、積極的に整備を推進することが求められている。\nまた、引き続き事業の推進を図るため、より一層の財源確保（国費）と経費の節減に努めていく必要がある。","② 課題抑制","地域防災計画と整合を図り、避難所に位置付けられた小学校等を対象に、プールの水を水源としたマンホールトイレの設置を進める。","下水道計画課"]
[null,null,null,null,null,"モノ","なし",0,"＜参考＞\n前年度決算額",null,null,"② 課題抑制","最新の工法や材料を取り入れることなどにより、更なる建設コストの低減を図る。"]
[null,null,null,"他都市等の状況",null,"カネ","歳出予算額\n2,232百万円\n【主なもの】\n管渠耐震化等工事\n請負費　1,660百万円\n処理場耐震化工事\n請負費　370百万円",2232,"歳出決算額　1,861百万円"]
[null,null,null,"重要な幹線等の耐震化率（全国）：48%\n（平成28年度末）"]
[]
["施策",null,null,"4-1-4",{"$f":"IF(D62=\"\",\"←施策番号を選択してください。\",VLOOKUP(D62,W$160:X$247,2,1))","v":"交通安全の推進"},null,null,"一般会計"]
["No.","新規","事務事業（業務）名","事務事業（業務）概要",null,"現状分析",null,null,null,"課題抽出",null,"今後の方向性",null,"所管課"]
[null,null,null,"目標（目的）","主な内容","事務事業（業務）に\n必要な行政資源",null,"コスト換算\n（単位：百万円）","行政コストの合計額\n（単位：百万円）","主な実績・効果","分析・評価","改善・改革の\n手法","今後の方向性"]
[null,null,null,"【（事務事業（業務）を行い）誰（何）が、どのような状態になることを目指すのか】","【サービス等の提供内容や提供先】",null,null,null,null,"【利用者数・件数等】","【現在どのような状態で、どのような課題があるのか】"]
["1",null,"交通安全施設等整備","　歩道や安全施設を整備することにより、市内の交通事故の減少が図られ、道路の利用者が安全に通行できる。","（提供内容）\n・歩道の整備\n・交差点の改良\n・歩道の改良\n・交通安全施設の充実\n・通学路の安全対策\n\n（提供先）\n道路の利用者","ヒト","職員20.96人\n（うち正規20.96人）",179,3851,"・事故発生状況（H28⇒H29)\n件数：2,959件⇒3,088件\n死者数：24人⇒18人\n負傷者数：3,595人⇒3,715人\n\n・歩道設置（平成29年度）\n　Ｌ=0.37km：誉田町平山町線・穴川天戸線\n\n・交差点の改良（平成29年度）\n　N=２箇所（完了）：生実池交差点・誉田IC交差点\n\n・歩道段差解消\n全体計画1,357箇所のうち延べ1,171箇所実施\n\n・視覚障害者誘導用ブロック\n全体計画85.8kmのうち延べ71.2km実施\n\n・通学路の合同点検\n全111校のうち\n3順目の32校実施\n","\n用地買収を伴う歩道の整備等は、整備までに時間を要することから、今後も短期的対策（路肩のカラー化等）と組み合わせ効率的に事業を実施するため、整備手法のフローを明確化した。\n交差点の改良については、短期的に安全性の向上、渋滞の緩和が図られ有効性が高いことから、早期完了を目指し推進している。\n歩道の改良については、道路特定事業計画に基づき、生活関連経路のバリアフリー整備を進めるなか、進捗に遅れが生じているが、計画期間内に整備を完了する必要がある。\nまた、オリンピック・パラリンピックの競技会場へのアクセスルート及び周辺道路のバリアフリー整備を進めているが、大会開催までの短期間のなかで、整備を完了する必要がある。\n交通安全施設の充実については、道路パトロールや市民からの要望を受け、交通事故防止対策を実施し、交通事故の発生件数は減少傾向にあるものの年間3,000件近くあり、依然として、必要性は高い。\n通学路の安全対策については、「千葉市通学路交通安全プログラム」に基づき、学校・警察・地域住民等と合同点検を実施し、安全対策を実施するとともに、「千葉市通学路のカラー化計画」に基づき、通学路の路肩のカラー化を計画どおりに進めていく。\n\n引き続き事業の推進を図るため、より一層の財源の確保（国費）と経費の節減に努めていく必要がある。","② 課題抑制","最新の工法や材料を取り入れることなどにより、更なる建設コストの低減を図る。","土木保全課\n\n\n道路計画課\n"]
[null,null,null,null,null,"モノ","－","－","＜参考＞\n前年度決算額"]
[null,null,null,"他都市等の状況",null,"カネ","歳出予算額3,672百万円\n（うち一般財源82百万円）\n【主なもの】\n委託料295百万円\n工事請負費1,412百万円\n公有財産購入費\n534百万円\n補償費1,442百万円",3672,"歳出決算額1,084百万円（うち一般財源237百万円）"]
[]
["2",null,"自転車走行環境整備","　自転車利用者及び歩行者が安全に通行できる。","（提供内容）\n自転車走行環境整備計画である「ちばチャリ・すいすいプラン」に基づき、整備を行う。\n併せて、自転車走行ルール等について、整備区間周辺の自治会・学校等への啓発を行う。\n\n（提供先）\n自転車利用者及び歩行者","ヒト","職員2.10人\n（正規2.10人）",17,{"$f":"SUM(H70:H72)","v":106},"・自転車レーン等\n　累計整備延長\n　　31.3km/75.7km\n（平成29年度末）","自転車レーン等については、着実に整備を進めているが、国土交通省及び警察庁の「安全で快適な自転車利用環境創出ガイドライン」の改訂に伴い、自転車レーンの設置に伴う路肩の舗装部分の幅員が1.0mから1.5mになり、車道混在型においても、舗装部分の幅員で1.0m以上の確保が望まれることとなったため、現計画における整備形態について見直しを行い整備する必要が生じた。\nまた、区画線の消去などの理由により、「ちばチャリ・すいすいプラン」策定時に想定していた整備費よりも、経費が増加していることから、コストの低減を図る。","② 課題抑制","路面表示の見直しを行い、コストの低減を図る。","自転車政策課"]
[null,null,null,null,null,"モノ","-","-","＜参考＞\n前年度決算額"]
[null,null,null,"他都市等の状況",null,"カネ","歳出予算額89百万円\n（うち一般財源6百万円）\n【主なもの】\n坂月町下田町線など\n工事請負費78百万円",89,"歳出決算額64百万円\n（うち一般財源3百万円）"]
[null,null,null,"-"]
["3",null,"放置自転車対策","放置自転車対策及び自転車駐車場の整備・管理を行うことで、良好な都市景観の形成を図るとともに、歩行者等が安心して通行できる。","（提供内容）\n・電磁ロック式ラック等の設備整備や自転車駐車場の新設・改築\n・路上巡回、放置自転車追放指導や移動保管等の放置自転車対策\n・自転車駐車場利用受付\n・料金徴収・収納・還付処理\n・自転車駐車場設備点検・維持修繕等\n（提供先）\n自転車利用者及び歩行者","ヒト","職員13.70人\n（正規8.10人、臨時5.60人）",79,{"$f":"SUM(H74:H76)","v":838},"自転車駐車場の収容台数\n平成17年6月：58,475台\n　　　　　　　↓\n平成29年11月：62,993台\n\n\n駅周辺の放置自転車台数\n平成17年6月：15,143台\n　　　　　　　↓\n平成29年11月：1,329台\n（H17ピーク時の9%）","駅周辺において149箇所の自転車駐車場を整備し、放置自転車の追放指導や移動・保管の継続的な実施によって、放置自転車は約1,300台となっている。\n近年は、24時間利用できるラックの整備など、利用者からのニーズが多様化していることが課題である。\nまた、自転車駐車場の4割が20年以上経過し、老朽化が進んでおり、ラック等設備にも不具合が発生していることから、今後、計画的に施設の更新をする必要がある。","③ 整理統合","24時間利用できる電磁ロック式ラック等の機械精算方式の導入によって利用者の利便性を高めるとともに、管理棟を統廃合し、管理運営費の縮減を図る。","自転車政策課"]
[null,null,null,null,null,"モノ","自転車保管場7箇所\n自転車駐車場149箇所",70,"＜参考＞\n前年度決算額",null,null,"② 課題抑制","自転車駐車場の適正な管理運営により、市民サービス向上を図るとともに、老朽化した施設の更新を計画的に進めることにより、維持管理コストの平準化を図る。"]
[null,null,null,"他都市等の状況",null,"カネ","歳出予算額701百万円\n（うち一般財源16百万円）\n【主なもの】\n自転車駐車場管理業務委託：133百万円",689,"\n歳出決算額821百万円\n（うち一般財源75百万円）\n"]
[null,null,null,"放置自転車数に関する内閣府調査によると、政令市の中で、千葉市は20市中第13位（順位は放置自転車数の少ない順）※H29年度調査結果。"]
["施策",null,null,"4-2-5",{"$f":"IF(D78=\"\",\"←施策番号を選択してください。\",VLOOKUP(D78,W$160:X$247,2,1))","v":"生活基盤の充実"},null,null,"一般会計"]
["No.","新規","事務事業（業務）名","事務事業（業務）概要",null,"現状分析",null,null,null,"課題抽出",null,"今後の方向性",null,"所管課"]
[null,null,null,"目標（目的）","主な内容","事務事業（業務）に\n必要な行政資源",null,"コスト換算\n（単位：百万円）","行政コストの合計額\n（単位：百万円）","主な実績・効果","分析・評価","改善・改革の\n手法","今後の方向性"]
[null,null,null,"【（事務事業（業務）を行い）誰（何）が、どのような状態になることを目指すのか】","【サービス等の提供内容や提供先】",null,null,null,null,"【利用者数・件数等】","【現在どのような状態で、どのような課題があるのか】"]
["1",null,"道路維持","安全で快適な道路環境を維持するため、補修や清掃、点検を行うことで、道路の利用者が安全に通行できる。","（提供内容）\n道路補修、道路清掃、\n道路施設の定期点検\n\n（提供先）\n道路の利用者","ヒト","職員71.58人\n（うち正規64.76人、非常勤6.82人）",518,{"$f":"SUM(H82:H85)","v":2945},"・要望対応件数\n10,263件\n（平成29年度実績）\n・パトロールによる対応件数\n2,917件\n（平成29年度実績）\n・舗装点検\n全体計画約380km\nのうち186km実施\n（平成29年度末）\n・道路照明灯点検\n一巡目完了\n二巡目2,095基実施。\n\n※舗装（幹線道路）と道路照明灯は5年間ですべて点検するように実施している。","【現在の状況】\n舗装などの点検を行い予防保全を行うことで事業費の平準化とコスト縮減も図られている。\n今後も適切に効率的な維持管理を行い、道路の利用者が安全に通行できるよう事業を実施する。\n\n【課題】\n管理している道路施設が膨大にあり、開発行為等の帰属により、新たに管理しなければならない道路施設は増加する一方である。\nまた、道路施設の老朽化が進んでいることから、維持管理費の増加が課題となっている。\n引き続き事業の推進を図るため、より一層の財源確保（国費）と経費の節減に努めていく必要がある。","② 課題抑制","千葉市道路舗装維持管理計画などの個別施設計画を順次策定し、予防保全型の管理に転換することで、コスト低減を図る。","土木管理課\n\n\n土木保全課"]
[null,null,null,null,null,"モノ","国道　　  7.1km\n県道　108.4km\n市道3,205.6km","―","＜参考＞\n前年度決算額",null,null,"② 課題抑制","最新の工法や材料を取り入れることなどにより、更なる建設コストの低減を図る。"]
[null,null,null,"他都市等の状況",null,"カネ","歳出予算額\n            2,433百万円\n（うち一般財源\n           2,309百万円）\n【主なもの】\n委託料1,419百万円\n修繕料  230百万円",2427,"歳出決算額\n           2,252百万円\n（うち一般財源\n          2,216百万円）\n\n"]
[]
["2",null,"道路新設改良","舗装側溝の新設改良を進め、生活環境の向上が図られることで、道路の利用者が安全に通行できる。","（提供内容）\n舗装の新設・改良、\n側溝の新設・改良\n\n（提供先）\n道路の利用者","ヒト","職員17.25人\n（うち正規17.12人、非常勤0.13人）",148,{"$f":"SUM(H86:H89)","v":3177},"舗装の新設　0.7km\n舗装の改良　14.1km\n側溝の新設　1.4km\n側溝の改良　4.7km\n（平成29年度実績）","幹線道路の舗装改良を計画的に実施するほか、大規模団地の側溝改良を計画的に実施するとともに、その他の道路新設改良は、パトロールや要望に基づき事業を実施している。\n舗装率が高水準であることなどから、舗装や側溝の新設は減少しているものの、施設の老朽化が進んでおり、改良に係る事業費が増大している。\n引き続き事業の推進を図るため、より一層の財源確保（国費）と経費の節減に努めていく必要がある。","② 課題抑制","千葉市道路舗装維持管理計画に基づき予防保全型の管理に転換することで、コスト低減を図る。","土木保全課"]
[null,null,null,null,null,"モノ","―","―","＜参考＞\n前年度決算額",null,null,"② 課題抑制","最新の工法や材料を取り入れることなどにより、更なる建設コストの低減を図る。"]
[null,null,null,"他都市等の状況",null,"カネ","歳出予算額\n          3,029百万円\n（うち一般財源58百万円）\n【主なもの】\n工事請負費\n          2,105百万円\n公有財産購入費\n            714百万円",3029,"歳出決算額\n        2,772百万円\n（うち一般財源\n           602百万円）"]
[]
["3",null,"橋りょう維持","橋梁やモノレールの点検・補修を実施することで、道路・モノレールの利用者が安全に利用できる。","（提供内容）\n橋梁定期点検・補修、\nモノレールインフラ施設の定期点検・塗り替え塗装及び更新改良\n\n（提供先）\n道路・モノレールの利用者","ヒト","職員8.36人\n（うち正規8.36人）",71,{"$f":"SUM(H90:H93)","v":2246},"・橋梁補修\n全体539橋のうち185橋実施\n（平成29年度末）\n・モノレール塗り替え塗装\n全体15.4kmのうち10.3km実施\n（平成29年度末）\n・橋梁点検\n1巡目完了\n2巡目全体539橋のうち211橋点検を実施（平成29年度末）\n・モノレールインフラ施設点検\n1順目完了\n2巡目全体15.4kmのうち3.2km点検を実施（平成29年度末）\n\n※橋梁及びモノレールインフラ施設は5年間ですべて点検するように実施している。","橋梁については、千葉市橋梁長寿命化修繕計画等に基づき、概ね計画どおり補修や点検を実施している。\n鉄道や高速道路を跨ぐ橋梁の事業実施に際しては、ＪＲ、ＮＥＸＣＯ等の他事業者との協議に時間を要し、スケジュールどおり進まないことが課題となっている。\nモノレールインフラ施設については、千葉市橋梁長寿命化修繕計画（千葉都市モノレールインフラ施設編）に基づき、概ね計画どおり補修や点検を実施している。\nまた、平成29年度に、計画の更新案を作成したが、施設の老朽化が進んでいることから、将来にわたる維持管理費の増加が課題となっている。\n引き続き事業の推進を図るため、より一層の財源確保（国費）と経費の節減に努めていく必要がある。","② 課題抑制","（1）\nＰＤＣＡサイクルに基づき、長寿命化修繕計画を更新する。","土木保全課"]
[null,null,null,null,null,"モノ","―","―","＜参考＞\n前年度決算額",null,null,"① 調達改革","（2）\n橋梁補修と耐震補強の一体施工による仮設費用の縮減を行いコスト低減を図る。"]
[null,null,null,"他都市等の状況",null,"カネ","歳出予算額\n            2,175百万円\n（うち一般財源\n             　372百万円）\n【主なもの】\n委託料1,019百万円\n工事請負費1,164百万円",2175,"歳出決算額\n        1,962百万円\n（うち一般財源\n           108百万円）",null,null,"② 課題抑制","最新の工法や材料を取り入れることなどにより、更なる建設コストの低減を図る。"]
[]
["4",null,"排水施設維持管理","排水路等（公共下水道を除く）の適切な維持管理を行うことにより、快適で安心した生活環境を市民に提供することができる。","（提供内容）\n排水路等（公共下水道を除く）の不具合箇所の補修や用地内の草刈業務等\n\n（提供先）\n周辺住民\n道路利用者","ヒト","職員4.9人\n（正規3.8人、再任用1.1人）",41,{"$f":"SUM(H94:H97)","v":259},"不具合等の対応要望件数\n　H22　：　  97件\n　H25　：　192件\n　H29　：　214件\n※年々、施設の不具合等に関する市民からの要望件数が増加傾向にある。","施設の老朽化に伴い、年々、不具合等が増加する中で、快適で安心な市民生活を提供し続けるためには、維持管理事業を「予防保全型」へ移行していく必要がある。\nそれにより、今後の事業費の平準化を図ることが可能となり、安定した事業の運営に繋がる。","② 課題抑制","平成32年度までに、主要な施設の個別施設計画を策定し、予防保全型の計画的な維持管理を実施していく。","下水道維持課"]
[null,null,null,null,null,"モノ","【主なもの】(H29)\n排水路　L=486km\n\n調整池　90箇所　他","－","＜参考＞\n前年度決算額"]
[null,null,null,"他都市等の状況",null,"カネ","歳出予算額218百万円\n（うち一般財源137百万円）\n【主なもの】\n清掃・補修等費用(土木事務所単価契約)：43百万円\n草刈業務委託：26百万円\n工事請負費：66百万円",218,"歳出決算額　215百万円\n（うち一般財源166百万円）"]
[null,null,null,"－"]
["5",null,"生活道路整備","すれ違い困難箇所の解消のため、道路の拡幅や待避所の整備を行うことにより、生活を支える道路を安心して使うことができる。","（提供内容）\n生活道路の整備\n・道路の拡幅\n・待避所の設置\n\n（提供先）\n道路の利用者","ヒト","職員5.43人\n（正規5.43人）",43,{"$f":"SUM(H98:H101)","v":500},"要望件数  \n・平成27年度　 6件\n・平成28年度　 3件\n・平成29年度　 6件\n\n整備状況（平成29年度）\n・拡幅整備　　 L=64ｍ（土気１７号線）\n　　　　　　　　 \n","拡幅整備要望が多数寄せられている。\n用地買収を伴う道路の拡幅は、事業費が高額で供用までに時間を要している。\nこのことから。短期間にすれ違い困難箇所の解消ができ、安全性や利便性が向上する、用地買収が少ない線形の改良や待避所の設置などの部分的拡幅を推進するため、整備手法の選定フローを明確化した。\n引き続き事業の推進を図るため、より一層の経費の削減に努めていく必要がある。","② 課題抑制","最新の工法や材料を取り入れることなどにより、さらなる建設コストの低減を図る。","道路計画課"]
[null,null,null,null,null,"モノ","－","－","＜参考＞\n前年度決算額"]
[null,null,null,"他都市等の状況",null,"カネ","歳出予算額457百万円\n（うち一般財源85百万円）\n【主なもの】\n委託料　58百万円\n工事請負費　50百万円\n公有財産購入費　100百万円\n補償費　254百万円",457,"歳出決算額45百万円\n（うち一般財源20百万円）"]
[null,null,null,"－"]
["6",null,"道路管理事務","　道路利用の秩序を維持し、道路を適正な状態に保持することで、様々な社会活動を支えるとともに、地域住民へ安全・安心な生活環境を提供する。","（提供内容）\n道路占用許可、道路工事施行承認、特殊車両通行許可、道路境界査定、道路用地の寄付、放置自動車の措置、道路施設損傷事故への対応、管理瑕疵への対応等\n\n（提供先）\n道路の利用者","ヒト","職員44.35人\n（うち正規41.35人、非常勤3.00人）",349,{"$f":"SUM(H102:H105)","v":389},"（平成29年度実績）\n・道路占用等許可\n　許可件数：8,063件\n　収入金額：740百万円\n・道路工事施行承認\n　承認件数：623件\n・特殊車両通行許可・協議\n　許可件数：　900件\n　協議件数：4,751件","公共性の高い道路を管理する上で、道路利用者の秩序を維持し、道路を適正な状態に保持することは、必要な事務であり、有効性は高い。また、車両の大型化の進展等に伴い特殊車両の通行に係る許可・協議が増加しており、当面その傾向は続くと推察される。\n今後も、効率化を図りつつ、道路管理事務を引き続き実施していく。","② 課題抑制","道路情報便覧への収録事務を促進し、事務の効率化を図る。","土木管理課"]
[null,null,null,null,null,"モノ","国道　　  7.1km\n県道　108.4km\n市道3,205.6km",null,"＜参考＞\n前年度決算額"]
[null,null,null,"他都市等の状況",null,"カネ","歳出予算額47百万円\n（うち一般財源40百万円）\n【主なもの】\n委託料17百万円\n\n歳入予算額758百万円\n【主なもの】\n道路占用料",40,"歳出決算額33百万円（うち一般財源32百万円）"]
[]
[]
["施策",null,null,"4-2-5","生活基盤の充実",null,null,"下水道事業会計"]
["No.","新規","事務事業（業務）名","事務事業（業務）概要",null,"現状分析",null,null,null,"課題抽出",null,"今後の方向性",null,"所管課"]
[null,null,null,"目標（目的）","主な内容","事務事業（業務）に\n必要な行政資源",null,"コスト換算\n（単位：百万円）","行政コストの合計額\n（単位：百万円）","主な実績・効果","分析・評価","改善・改革の\n手法","今後の方向性"]
[null,null,null,"【（事務事業（業務）を行い）誰（何）が、どのような状態になることを目指すのか】","【サービス等の提供内容や提供先】",null,null,null,null,"【利用者数・件数等】","【現在どのような状態で、どのような課題があるのか】"]
["1",null,"ストックマネジメントの推進","・本市が保有する下水道管渠及び処理場・ポンプ場設備全てを対象とした下水道ストックマネジメント計画を策定した。\n・計画に基づき、老朽化した下水道管渠の改築を行い、道路陥没や下水道の流下阻害を防止することにより、市民が安全に道路を使うことができるとともに、下水道の機能を確保する。\n・計画に基づき、老朽化した処理場・ポンプ場設備の改築を行い、機能停止による事故を未然に防止することにより、安定的な下水道サービスを市民に提供する。","（提供内容）\n老朽化した下水道管渠91km及び浄化センター・ポンプ場設備の改築\n・管渠の改築13.4km\n・南部浄化センター及び大椎ポンプ場外設備の改築\n・マンホール蓋の交換1000個\n\n（提供先）\n公共下水道及び道路の利用者","ヒト","職員18.91人\n（正規18.15人、非常勤0.76人）",149,{"$f":"SUM(H111:H114)","v":3393},"・下水道管渠改築率の推移\n　平成26年度末 35.7%(32.5km)\n　平成27年度末 39.6%(36.0km)\n　平成28年度末 46.8%(42.6km)\n　平成29年度末 56.2%(51.1km)\n\n・処理場設備の改築：2箇所\n ポンプ場設備の改築：17箇所\n\n老朽化した下水道管渠や処理場・ポンプ場設備の改築を計画的に進めることにより、道路陥没や下水道の流下阻害、機能停止による事故を未然に防止でき、安定的な下水道サービスを市民に提供することができる。","「～H29」\nカメラ調査結果や機器の機能診断に基づき、施設の健全度を適正に評価・把握し、効率的な改築を実施しており、下水道の機能確保が図られている。\n\n「H30～」\n今後は、平成29年度に策定した下水道施設全体を維持から改築まで一体的に管理する「下水道ストックマネジメント計画（H30～H34）」に基づき事業を進める。\n\n現在、中央処理区の4ポンプ場及び印旛処理区の2ポンプ場について、供用開始後49年が経過し、施設の老朽化が進み、再構築が必要となっている。\nまた、引き続き事業の推進を図るため、より一層の財源確保（国費）と経費の節減に努めていく必要がある。","② 課題抑制","中央処理区の4ポンプ場を1ポンプ場、印旛処理区の2ポンプ場を1ポンプ場に統合する計画であるが、平成28年に「千葉市下水道全体計画」が見直されたことから、将来汚水量に基づく施設規模の検証を行い、ダウンサイジング（規模の縮小化）を踏まえた整備計画を策定し、更なるコスト縮減を図るとともに、PPP/PFI手法の導入可否に係る事業スキームの検討を進める。","下水道計画課"]
[null,null,null,null,null,"モノ","なし",0,"＜参考＞\n前年度決算額",null,null,"② 課題抑制","最新の工法や材料を取り入れることなどにより、更なる建設コストの低減を図る。また、設備については省エネ機器の導入や機能向上等を踏まえながら効率的に改築を行う。"]
[null,null,null,"他都市等の状況",null,"カネ","歳出予算額\n3,244百万円\n【主なもの】\n管渠改良工事請負費\n1,231百万円\n焼却炉等改築工事請負費 1,274百万円\nマンホール蓋更新等工事\n請負費 200百万円",3244,"歳出決算額　3,511百万円"]
[]
["2",null,"中央・南部浄化センター\n等包括的維持管理","民間事業者に包括的民間委託できる範囲内において、施設等の維持管理を委託することにより、公共用水域の水質を保全し、市民に良好な生活環境を提供する。","（提供内容）\n中央・南部浄化センター及び所管ポンプ場等運転管理、保守点検、補修、及び清掃等\n※市職員が行わなければならない履行の確認等の業務を除く　　　　　　　　　\n\n（提供先）\n下水道利用者\n海辺等の利用者","ヒト","中央浄化センター\n職員2.7人\n正規1.6人、再任1.1人\n南部浄化センター\n職員3.4人\n正規3.2人、再任0.2人　　 　　   計  　   6.1人",49,{"$f":"SUM(H115:H118)","v":2655},"全処理区　※H30.3現在\n（印旛、中央、南部）\n利用者数：937,324人\n接続世帯数：437,766\n処理水量：77,821,847㎥\n\n公共用水域の水質汚濁防止法規制値より厳しい基準値を達成している。\n\n※印旛処理区は、終末処理場以外の中継ポンプ場等の維持管理を包括委託を行う。\n","包括的民間委託はこれまで、\n第1期　H20～H22\n第２期　H23～H25\n第３期　H26～H30\nの期間で契約しており、第3期においては契約期間を5年にすることにより、コスト縮減（約80百万円/年の見込み）を図っている。\nまた、受託者は契約水質基準を確実に達成するための自主管理基準を設定し、適正に公共用水域の水質保全を図り、市民に良好な生活環境を提供している。\nなお、包括的民間委託の履行監視においては、下水道維持管理経験退職者の活用により技術を維持しており、今後も継続して履行監視能力に関する技術の継承が重要である。","⑧ その他","将来にわたり包括的民間委託の履行監視を職員が適正に行う能力を維持するために、他団体が実施する研修や下水道維持管理経験退職者の活用等を推進する。\nまた、ストックマネジメント計画による点検・調査により、早期のリスク発見及び対応を行い処理場・ポンプ場機能の安定を図る。","中央浄化センター\n\n南部浄化センター"]
[null,null,null,null,null,"モノ","【主なもの】\n下水処理場　　2施設\nポンプ場等　190施設",null,"＜参考＞\n前年度決算額"]
[null,null,null,"他都市等の状況",null,"カネ","歳出予算額\n中央浄化センター\n　　　　　　　 701百万円\n南部浄化センター\n　　　　　　 1,905百万円\n\n　　　　 計 2,606百万円\n\n【全体H26～H30年度】\n　歳出予算額\n　　　　 12,161百万円",{"$f":"701+1905","v":2606},"\n歳出決算額\n中央浄化センター\n　　　　　　　648百万円\n南部浄化センター\n　　　　　　1,703百万円\n\n　　　　　計2,351百万円"]
[null,null,null,"処理場・ポンプ場等の包括的維持管理委託を導入している政令市：9市"]
["3",null,"中央・南部浄化センター\n維持管理","包括的民間委託に含まない計画修繕や汚泥焼却灰の処分について、修繕計画の立案・施行や産業廃棄物として、法令に基づき適正に埋立処分することで、市民に良好な生活環境を提供する。","(提供内容)\n中央及び南部浄化センター所管施設の機能保全を目的とした計画的修繕の立案、施行並びに南部浄化センターのおける下水から発生する沈砂、し渣、汚泥焼却灰の処分\n\n（提供先）\n下水道利用者\n海辺等の利用者　　　　　　　　　　　　　　","ヒト","【計画修繕】\n中央浄化センター\n職員 2.3人\n正規1.5人、再任0.8人 \n南部浄化センター\n職員 2.8人　　　　　　\n正規2.8人、再任0人\n【焼却灰】\n南部浄化センター\n正規0.4人、再任0人\n　　　　　　　　計　5.5人",{"$f":"18+25","v":43},{"$f":"SUM(H119:H122)","v":906},"平成29年度実績\n【計画修繕】\n中央浄化センター　　20件\n南部浄化センター　　26件 \n　　　　　　　      計46件\n                 　　　　　　　\n金額     　523百万円\n       　　  \n【焼却灰】\n南部浄化センター\n焼却灰発生量　1,658t\n金額　　　　 46百万円\n　　　　　","施設機能を維持し、安定的に下水を処理するために予防保全などの観点から計画的な修繕執行を行い、市民に良好な生活環境を提供している。\n下水道維持管理経験退職者の活用による計画修繕執行から、技術の維持が行われており、今後も継続して下水処理の水準を保つには、修繕の立案、施行に関する技術の継承が重要である。\nまた、汚泥焼却灰については、職員により法令に基づいた適正な処分を確認している。\n\n","⑧ その他","包括的民間委託に含まない、市が行うべき計画修繕等の業務を効果的、かつ、確実に実施する能力を維持するために、他団体が実施する研修や下水道維持管理経験退職者の活用等を推進する。\nストックマネジメント計画で設定した修繕の実施計画に基づき、効率的かつ効果的な運用を図る。","中央浄化センター\n\n南部浄化センター"]
[null,null,null,null,null,"モノ","【計画修繕】\n中央浄化センター　　28件\n南部浄化センター　　40件 \n　　　　　　　         計 68件\n　　　　　\n【焼却灰】\n焼却灰2,200t/年","-","＜参考＞\n前年度決算額"]
[null,null,null,"他都市等の状況",null,"カネ","歳出予算額\n【計画修繕】\n中央浄化センター \n　　　　　　  　209百万円\n南部浄化センター　　\n　　　　　　  　578百万円\n　　　 \n　　　　　計   787百万円\n\n【焼却灰】\n南部浄化センター\n　　　　　　　  76百万円",{"$f":"787+76","v":863},"歳出決算額\n【計画修繕】\n中央浄化センター\n　　　　　　　109百万円\n南部浄化センター\n　　　　　　　414百万円\n\n　　　　 計　523百万円\n\n【焼却灰】\n南部浄化センター\n　　　　　　　46百万円"]
[null,null,null,"【計画修繕】\n計画修繕を実施している自治体：千葉県・東京都・横浜市・川崎市他多数　　　　　　　　\n"]
["4",null,"下水道施設維持管理","管渠や調整池等の公共下水道施設の適切な維持管理を行うことにより、安定的な下水道サービスを市民に提供することができる。","（提供内容）\n管渠や調整池等の公共下水道施設の不具合箇所の補修や用地内の草刈業務等\n\n（提供先）\n下水道利用者\n周辺住民\n道路利用者","ヒト","職員9.6人\n（正規7.6人、再任用2.0人）",89,{"$f":"SUM(H123:H126)","v":1130},"不具合等の対応要望件数\n　H22　：　200件\n　H25　：　250件\n　H29　：　269件\n※年々、施設の不具合等に関する市民からの要望件数が増加傾向にある。\n\n\n管路施設の点検調査実績\n（H29）\n　　・巡視点検　L=75km\n　　・簡易調査　L=35km","施設の老朽化に伴い、年々、下水道施設の不具合等が増加する中で、快適で安心な市民生活を提供し続けるためには、維持管理事業を「予防保全型」へ移行していく必要がある。\nそれにより、今後の事業費の平準化を図ることが可能となり、安定した事業の運営に繋がる。","② 課題抑制","平成29年度に策定した下水道ストックマネジメント計画に基づき、予防保全型の計画的な維持管理を実施していく。","下水道維持課"]
[null,null,null,null,null,"モノ","【主なもの】(H29)\n下水道管渠　L=3,714km\nマンホール　118,590基\n調整池　15箇所　等","－","＜参考＞\n前年度決算額"]
[null,null,null,"他都市等の状況",null,"カネ","歳出予算額1,041百万円\n【主なもの】\n清掃・補修等費用(土木事務所単価契約)：191百万円\n不明水調査費：27百万円\n管渠点検調査費：246百万円\n調整池浚渫工事:200百万円",1041,"歳出決算額　462百万円"]
[null,null,null,"－"]
["5",null,"下水道未普及地域の解消","・汚水管渠を整備し、周辺環境の改善やトイレの水洗化を図ることにより、衛生的で快適な市民生活を提供する。\n・平成33年度までに、下水道処理人口普及率を97.5%にする。","（提供内容）\n未整備地区における汚水管渠の整備\n・汚水管渠の整備6.4ha\n（うち区画整理1.2ha）\n\n（提供先）\n公共下水道の利用者","ヒト","職員8.55人\n（正規8.20人、非常勤0.35人）",68,{"$f":"SUM(H127:H130)","v":594},"・下水道処理人口普及率の推移\n　平成26年度末　97.2%　\n　平成27年度末　97.3%\n　平成28年度末　97.3%\n  平成29年度末　97.3%\n\n未整備地区の汚水整備を計画的に進めることにより、地域住民へ衛生的で快適な生活環境を提供することができる。","これまでの整備により、汚水整備はほぼ概成となり、大多数の市民が衛生的で快適な生活が送れるようになったが、依然、私道や低地部等の未整備箇所も点在することから、全市域汚水適正処理構想（H27策定）に基づく全体計画により、費用対効果1以上の箇所を優先的に整備を実施していく。\nまた、今後はこれらの箇所に加え、区画整理事業と一体的な整備を確実に進めていく。\nまた、引き続き事業の推進を図るため、より一層の経費の節減に努めていく必要がある。","② 課題抑制","最新の工法や材料を取り入れることなどにより、更なる建設コストの低減を図る。","下水道計画課\n下水道整備課"]
[null,null,null,null,null,"モノ","なし",0,"＜参考＞\n前年度決算額"]
[null,null,null,"他都市等の状況",null,"カネ","歳出予算額\n526百万円\n【主なもの】\n排水施設建設工事\n請負費\n281百万円",526,"歳出決算額　462百万円"]
[null,null,null,"下水道処理人口普及率\n・全国平均：78.3%\n・政令都市：97.2%\n・千葉市：97.3%（東京23区を含めた21政令都市中13位）\n（平成28年度末）"]
[]
["施策",null,null,"4-3-2",{"$f":"IF(D132=\"\",\"←施策番号を選択してください。\",VLOOKUP(D132,W$78:X$1027,2,1))","v":"道路ネットワークの形成"},null,null,"一般会計"]
["No.","新規","事務事業（業務）名","事務事業（業務）概要",null,"現状分析",null,null,null,"課題抽出",null,"今後の方向性",null,"所管課"]
[null,null,null,"目標（目的）","主な内容","事務事業（業務）に\n必要な行政資源",null,"コスト換算\n（単位：百万円）","行政コストの合計額\n（単位：百万円）","主な実績・効果","分析・評価","改善・改革の\n手法","今後の方向性"]
[null,null,null,"【（事務事業（業務）を行い）誰（何）が、どのような状態になることを目指すのか】","【サービス等の提供内容や提供先】",null,null,null,null,"【利用者数・件数等】","【現在どのような状態で、どのような課題があるのか】"]
["1",null,"幹線道路整備","・幹線道路を整備し、混雑区間の減少による、移動時間の短縮や輸送費の低下によって、経済活動の生産性を向上させ経済成長を図るとともに道路ネットワーク強化により防災力を向上を図る。また、交通の円滑化により、周辺生活道路の交通量を削減させ利便性・安全性の向上を図る。\n\n・都市計画道路の整備率を平成33年度末までに76.6％にする。","（提供内容）\n・県道の整備\n・主要市道の整備\n・都市計画道路の整備\n\n（提供先）\n道路の利用者","ヒト","職員13.07人\n（正規13.07人）",104,{"$f":"SUM(H136:H139)","v":2159},"平成２９年度供用\n・千葉鎌ヶ谷松戸線 L=0.86km\n\n都市計画道路の整備率\n　75.2％（平成29年度末）\n\n市内の一般道路の平均混雑度\n　平成22年度　1.01\n　平成27年度　0.96\n(道路交通センサス調査結果)","・十分な財源（国費）の確保ができないことから、事業が長期化している。このため、事業の選択と集中を行い、整備優先度の高い路線への重点的な投資による効率的な道路ネットワーク形成が必要である。\n\n・引き続き事業の推進を図るため、より一層の財源確保（国費）と経費の削減に努めていく必要がある。","② 課題抑制","道路整備による成果目標を定めた「道路整備プログラム」を策定し、選択と集中を図り、効果的に事業効果を発現させる。","道路計画課"]
[null,null,null,null,null,"モノ","－","－","＜参考＞\n前年度決算額",null,null,"② 課題抑制","最新の工法や材料を取り入れることなどにより、さらなる建設コストの低減を図る。"]
[null,null,null,"他都市等の状況",null,"カネ","【歳出予算額】\n2,055百万円\n（うち一般財源80百万円）\n【主なもの】\n委託料　51百万円\n工事請負費　567百万円\n公有財産購入費　783百万円\n補償費　648百万円\n",2055,"歳出決算額1,433百万円（うち一般財源97百万円）"]
[null,null,null,"・都市計画道路の整備率\n（H29.3.31現在）\nさいたま市　51.6％\n横浜市　　　63.0％\n川崎市　　　70.6％\n相模原市　 75.3％\n"]
["2",null,"道路計画調査","市民が、道路の整備計画や整備後の効果について把握できる。","・交通現況調査\n・道路交通情報管理システム保守管理他","ヒト","職員1.06人\n（正規1.06人）",9,{"$f":"SUM(H140:H143)","v":104},"\n\n道路交通センサス調査\n（幹線道路の一般交通量調査）　\n　平成27年度\n　　交通量調査　　　 43箇所\n　　道路現況調査　　67区間\n\n交通現況調査\n（交差点交通量調査）\n　平成27年度　35か所\n　平成28年度　23箇所\n　平成29年度　27箇所\n　　\n道路交通情報管理システム\n（交通状況（旅行速度等）の把握を行うシステム）\n　取得データ\n　・平成２４年３月\n　　～平成２９年１１月まで\n　　※期間内で取得していない\n　　　 期間もある。\n 　　\n\n\n","・道路交通実態を把握するデータを継続して取得し、整備計画の検討や交通安全対策の立案のほか整備効果の検証ができる状態となっている。また、道路整備計画以外の活用として、イベント時の道路混雑状況を解析した資料を作成し提供している。\n\n・交通現況調査の結果について、平成２８年度からホームページでの公表を行っている。\n",null,null,"道路計画課"]
[null,null,null,null,null,"モノ","－","－","＜参考＞\n前年度決算額"]
[null,null,null,"他都市等の状況",null,"カネ","歳出予算額95百万円\n（うち一般財源75百万円）\n【主なもの】\n委託料94百万円",95,"歳出決算額50百万円（うち一般財源50百万円）"]
[null,null,null,"・道路交通情報管理システム\n（東京、静岡市、浜松市で採用）"]
["3",null,"踏切除却","緊急対策が必要な踏切（開かずの踏切）を除却することで、踏切での事故を無くし、道路利用者・鉄道利用者の安全の確保を図る。","(提供内容）\n市道幕張町２１５号線（花立、第二花立、京成幕張本郷第１号踏切）\n\n（提供先）\n事業延長　L=870m\n(鉄道交差部　L=80m）\n幅員10～20ｍ","ヒト","職員1.35人\n（正規1.35人）",12,{"$f":"SUM(H144:H147)","v":25},"昭和56年度　　 事業着手\n平成10年度～　道路築造工事\n                      に着手\n　　　　　　　　　　取付道路\n　　　　　　　　　　L=530m完了\n平成13年度～　鉄道交差部\n                      工事に着手\n平成14年度　　 仮設踏切に\n　　　　　　　　　 切替\n平成23年度～　住民へ説明し、\n　　　　　　　　　　工事を中断\n平成29年度　　政策会議及び\n　　　　　　　　  公共事業再評価\n　　　　　　　　　に諮る\n","・平成23年度に工事を一時中断するため、JR留置線擁壁基礎部や立坑等の安全対策を実施しているが、引き続き中断する場合は、追加の安全対策が必要となる。\n\n・仮設踏切にて過去死傷事故（H19以降）が４件発生していることから、踏切除却が必要であるが、除却時期が未定である。\n\n","② 課題抑制","・安全対策の実施においては、鉄道事業者にコスト縮減を求めていく。\n\n・工事を再開するために確保している施工ヤードは、周辺住民の生活の支障となっていることから、この用地の縮小を進め、維持管理コストの削減を図る。","街路建設課"]
[null,null,null,null,null,"モノ","－","－","＜参考＞\n前年度決算額"]
[null,null,null,"他都市等の状況",null,"カネ","歳出予算額 13百万円\n（うち一般財源 13百万円）\n【主なもの】\n負担金（維持）　13百万円　",13,"歳出決算額39百万円（うち一般財源39百万円）\n\n※歳出決算額39,091千円（うち一般財源39,091千円）"]
[null,null,null,"－"]
[]
["施策",null,null,"4-3-3",{"$f":"IF(D149=\"\",\"←施策番号を選択してください。\",VLOOKUP(D149,W$65:X$1001,2,1))","v":"人にやさしい移動環境の創出"},null,null,"一般会計"]
["No.","新規","事務事業（業務）名","事務事業（業務）概要",null,"現状分析",null,null,null,"課題抽出",null,"今後の方向性",null,"所管課"]
[null,null,null,"目標（目的）","主な内容","事務事業（業務）に\n必要な行政資源",null,"コスト換算\n（単位：百万円）","行政コストの合計額\n（単位：百万円）","主な実績・効果","分析・評価","改善・改革の\n手法","今後の方向性"]
[null,null,null,"【（事務事業（業務）を行い）誰（何）が、どのような状態になることを目指すのか】","【サービス等の提供内容や提供先】",null,null,null,null,"【利用者数・件数等】","【現在どのような状態で、どのような課題があるのか】"]
["1","●","自転車を活用したまちづくり","市民が、安全、快適かつ、自発的に自転車を利用する。","（提供内容）\n自転車の特性や安全利用等についての周知啓発\n自転車利用に関する自主的活動への支援\n\n\n（提供先）\n市民","ヒト","職員1.80人\n（正規1.80人）",15,{"$f":"SUM(H153:H156)","v":18},"自転車を活用したまちづくり啓発イベント　2回　\n・ちばチャリミニフェスタ2017\n・大漁まつり会場にて、自転車体験イベントを開催\n\n自転車リーダー育成講習会 1回","本市は、平坦な地形であり、自転車を日常的に利用しやすく、また自転車で巡る地域資源にも恵まれているが、必ずしも自転車が利用されていない可能性がある。「まちづくり条例」がまだ市民に浸透しておらず、自転車利用に関する市民の意識が低い。","⑤ 連携・協働の推進\n","市民の自転車に関する意識や利用状況等のアンケートを実施して、施策の推進に必要な情報を収集する。また、リーフレットの頒布やイベントの開催、市民団体等との連携などにより、まちづくり条例等、市の施策に関する情報の周知・啓発を行い、市民の自転車利用に関する意識向上を図る。","自転車政策課"]
[null,null,null,null,null,"モノ","－","－","＜参考＞\n前年度決算額"]
[null,null,null,"他都市等の状況",null,"カネ","歳出予算額3百万円\n（うち一般財源3百万円）\n【主なもの】\n委託料\n　3百万円",3,"歳出決算額3百万円\n（うち一般財源3百万円）"]
[null,null,null,"－"]
[]
["施策",null,null,"4-3-4",{"$f":"IF(D158=\"\",\"←施策番号を選択してください。\",VLOOKUP(D158,W$160:X$247,2,1))","v":"ＩＣＴを活かした利便性の向上"},null,null,"一般会計"]
["No.","新規","事務事業（業務）名","事務事業（業務）概要",null,"現状分析",null,null,null,"課題抽出",null,"今後の方向性",null,"所管課"]
[null,null,null,"目標（目的）","主な内容","事務事業（業務）に\n必要な行政資源",null,"コスト換算\n（単位：百万円）","行政コストの合計額\n（単位：百万円）","主な実績・効果","分析・評価","改善・改革の\n手法","今後の方向性"]
[null,null,null,"【（事務事業（業務）を行い）誰（何）が、どのような状態になることを目指すのか】","【サービス等の提供内容や提供先】",null,null,null,null,"【利用者数・件数等】","【現在どのような状態で、どのような課題があるのか】"]
["1",null,"道路台帳整備","ホームページで道路台帳等の情報を公開することで、市民や業者がその情報を容易に入手し、活用できるようになることから、市民サービスの向上や行政運営の効率化が図られる。","（提供内容）\n道路台帳等の閲覧及び交付、千葉市公共基準点の利用や道路台帳の一部をホームページ上で公開をする。\n\n（提供先）\n市民及び不動産業、建設業、測量業等の業者","ヒト","職員19.80人\n（正規17.20人、非常勤2.60人）",59,{"$f":"SUM(H162:H165)","v":153},"\n・窓口来庁者数　約1.4万人/年\n・認定道路網図システム閲覧アクセス数\n約8万件/年（平成29年度）","従来、窓口対応であった道路台帳の一部の情報の閲覧を、ホームページに公開したことで、市民等が来庁せずに情報を得ることが可能となった。認定道路網図システム閲覧アクセス数が平成26年度（約6万件）と比較し、平成29年度（約8万件）は、ほぼ1.3倍の実績となっており、市民等に有効に活用されている。更なる市民サービスの向上、行政運営の効率化を図るため、市民ニーズの把握やより多くの道路に関する情報提供が必要となる。\nまた、窓口来庁者が道路区域線に係る照会で、道路区域線未整備であって各土木事務所が境界確定協議を実施している場合、土木事務所で内容の確認をすることになり、本庁往来に要する時間ロスが発生している。","⑥ ＩＣＴ活用","ホームページで道路工事、公共基準点、道路区域線設置箇所を公開するためにシステム拡充を図り、市民サービスの向上、行政運営の効率化を図る。","路政課"]
[null,null,null,null,null,"モノ","千葉市道路管理システム","―","＜参考＞\n前年度決算額"]
[null,null,null,"他都市等の状況",null,"カネ","歳出予算額  　99百万円\n（うち一般財源 93百万円) \n【主なもの】\n道路台帳整備委託　84百万円",94,"歳出予算額　96百万円\n（うち一般財源　91百万円）"]
[null,null,null,"道路台帳のホームページによる閲覧サービス　政令市：横浜市他11\n道路工事に関する情報をホームページで閲覧サービスしている政令市：名古屋市他6\n公共基準点に関する情報をホームページで閲覧サービスしている政令市：札幌市他6"]
[]
["施策",null,null,"5-2-1",{"$f":"IF(D167=\"\",\"←施策番号を選択してください。\",VLOOKUP(D167,W$78:X$1017,2,1))","v":"産業の振興"},null,null,"一般会計"]
["No.","新規","事務事業（業務）名","事務事業（業務）概要",null,"現状分析",null,null,null,"課題抽出",null,"今後の方向性",null,"所管課"]
[null,null,null,"目標（目的）","主な内容","事務事業（業務）に\n必要な行政資源",null,"コスト換算\n（単位：百万円）","行政コストの合計額\n（単位：百万円）","主な実績・効果","分析・評価","改善・改革の\n手法","今後の方向性"]
[null,null,null,"【（事務事業（業務）を行い）誰（何）が、どのような状態になることを目指すのか】","【サービス等の提供内容や提供先】",null,null,null,null,"【利用者数・件数等】","【現在どのような状態で、どのような課題があるのか】"]
["1",null,"企業立地を促進するための道路整備","工業団地等へのアクセスを改善することにより、利便性が向上し、企業立地の促進や立地企業の投資拡大を促す。","（提供内容）\n①千葉土気緑の森工業団地\n・千葉外房有料道路（大木戸ICフル化）\n\n②長沼・六方地区工業団地\n・市道東寺山町山王町線外１の整備\n\n（提供先）\n・道路の利用者","ヒト","職員1.32人\n（正規1.32人）",10,{"$f":"SUM(H171:H174)","v":826},"【千葉土気緑の森工業団地】\n・千葉外房有料道路（大木戸ICフル化）が平成29年3月に供用\n　　　　\n・分譲状況\n　・平成26年3月時点　76.4％\n　　（事業着手前）\n　・平成30年3月時点 92.5％\n　　（事業完了後） 　　　　\n　\n\n","・千葉土気の森工業団地については、道路整備により、企業立地が促進されれている。今後も企業立地の促進が期待でき、税源の涵養・雇用の創出効果や地域経済の活性化が期待される。\n\n・長沼六法地区工業団地については、東寺山町山王町線の早期供用を目指し用地取得を進めている。\n\n・引き続き事業の推進を図るため、経費の削減に努めていく必要がある。\n","② 課題抑制","最新の工法や材料を取り入れることなどにより、さらなる建設コストの低減を図る。","道路建設課"]
[null,null,null,null,null,"モノ","－","－","＜参考＞\n前年度決算額"]
[null,null,null,"他都市等の状況",null,"カネ","歳出予算額816百万円\n（うち一般財源7百万円）\n【主なもの】\n委託費　14百万円\n工事請負費　27百万円\n公有財産購入費　137百万円\n補償費　637百万円",816,"歳出決算額75百万円（うち一般財源5百万円）"]
[null,null,null,"－"]
[]
["施策",null,null,"5-3-3","農村と森林の持つ多面的機能の活用",null,null,"農業集落排水特会"]
["No.","新規","事務事業（業務）名","事務事業（業務）概要",null,"現状分析",null,null,null,"課題抽出",null,"今後の方向性",null,"所管課"]
[null,null,null,"目標（目的）","主な内容","事務事業（業務）に\n必要な行政資源",null,"コスト換算\n（単位：百万円）","行政コストの合計額\n（単位：百万円）","主な実績・効果","分析・評価","改善・改革の\n手法","今後の方向性"]
[null,null,null,"【（事務事業（業務）を行い）誰（何）が、どのような状態になることを目指すのか】","【サービス等の提供内容や提供先】",null,null,null,null,"【利用者数・件数等】","【現在どのような状態で、どのような課題があるのか】"]
["１",null,"農業集落排水事業維持・継続・再編","農業集落におけるし尿、生活雑排水などの汚水等を適切に処理することにより、農業用用排水の水質の汚濁を防止し、農村地域の健全な水循環に資する。","【サービス内容】\n農業集落におけるし尿、生活雑排水などの汚水処理。\n農業集落排水施設の機能保全。\n\n【サービス提供先】\n農業集落排水施設使用者","ヒト","職員3.70人\n（正規3.70人）",32,{"$f":"SUM(H180:H183)","v":245},"【普及状況】（29年度末）\n計画世帯数　2,020世帯\n接続世帯数　1,807世帯\n接続率　　　　89.5％\n接続人口　　4,784人\n\n\n【改築更新計画】\n平成22年度に「最適整備構想」（改築更新計画）を4地区（大和田、平川、本郷、野呂）において作成。\n\n平成29年度に大和田地区の更新工事を実施。","供用開始後26年が経過し、施設の老朽化が進んでいる。\n長期的には施設利用者数の減少が見込まれるが、機能は保全していく必要がある。\nまた、引き続き事業の推進を図るため、より一層の経費の節減に努めていく必要がある。","② 課題抑制","計画的に老朽化施設の改築更新（機能強化）を実施する。","下水道整備課"]
[null,null,null,null,null,"モノ","【主なもの】\n処理区　１０地区\n処理場　９か所\n管路延長　１１８ｋｍ\n中継ポンプ　１３９か所",57,"＜参考＞\n前年度決算額",null,null,"③ 整理統合","効率的な事業運営を行うため、施設の再編計画を策定する。"]
[null,null,null,"他都市等の状況",null,"カネ","歳出予算額\n156百万円\n【主なもの】\n委託料　　70百万円\n修繕料　　34百万円\n光熱水費　26百万円\n",156,"歳出予算額 \n208百万円\n【主なもの】\n工事請負費　66百万円\n委託料　　  54百万円\n修繕料　　  27百万円\n光熱水費　  30百万円\n",null,null,"② 課題抑制","最新の工法や材料を取り入れることなどにより、更なる建設コストの低減を図る。"]
[null,null,null,"【改築更新計画】\n千葉県における農業集落排水施設を有する39市町のうち既に「最適整備構想」を策定している市町：６市町（千葉市は除く）\n茂原市・山武市・九十九里町・一宮町・長南町・香取市"]
["施策",null,null,"9-9-9",{"$f":"IF(D184=\"\",\"←施策番号を選択してください。\",VLOOKUP(D184,W$160:X$247,2,1))","v":"その他"},null,null,"一般会計"]
["No.","新規","事務事業（業務）名","事務事業（業務）概要",null,"現状分析",null,null,null,"課題抽出",null,"今後の方向性",null,"所管課"]
[null,null,null,"目標（目的）","主な内容","事務事業（業務）に\n必要な行政資源",null,"コスト換算\n（単位：百万円）","行政コストの合計額\n（単位：百万円）","主な実績・効果","分析・評価","改善・改革の\n手法","今後の方向性"]
[null,null,null,"【（事務事業（業務）を行い）誰（何）が、どのような状態になることを目指すのか】","【サービス等の提供内容や提供先】",null,null,null,null,"【利用者数・件数等】","【現在どのような状態で、どのような課題があるのか】"]
["1",null,"生産性向上と人材育成","（１）生産性向上と担い手の確保\n生産年齢人口が減少する中、適切なインフラ整備や維持管理、災害等への迅速かつ的確な対応を持続可能とすることが必要である。そのため、施工時期の平準化など建設工事における生産性向上に取組み、地元建設企業の育成・確保を図る。\n\n（２）人材育成\nインフラの整備・維持管理に適切に対応できる市の技術職員を継続的に育成することにより、公共事業の品質確保を図り、市民へ質の高いインフラを提供する。","（提供内容）\n（１）生産性向上と担い手の確保\n・債務負担行為の活用による工事施工時期の平準化\n・適正な利潤確保に資する発注規模の見直し\n・概算数量発注方式の導入\n・ICT活用工事の促進\n・電子納品や電子検査等による書類の簡素化\n・広報活動・キャリア教育の推進\n・週休２日モデル工事の実施\n\n（２）人材育成\n・技術職員人材育成プログラムの実施\n\n（提供先）\n建設業就業者、市職員（建設部門）及び市民","ヒト","職員17.4\n（正規16.6人、非常勤0.8人）",145,{"$f":"SUM(H188:H191)","v":212},"（１）生産性向上と担い手の確保\n・施工時期の平準化工事　23件\n　※平準化率（月毎の最大稼働件数と月毎の最少稼働件数の比率）\n　　5.1倍（H26）→3.2倍（H29）\n・ICT活用工事　4件\n・工事検査　546件/年（うち、電子納品検査　32件）\n・週休２日モデル工事　3件\n\n（２）人材育成\n・54講座　参加述べ人数212人/年\n\n（平成29年度実績）","（１）生産性向上と担い手の確保\n実施業者のヒアリングにより、\n・平準化工事　「経営の安定化につながる。」\n・ICT活用工事　「知識・経験が不足。品質向上につながる。」\n・週休２日モデル工事　「現場の意識改革が必要。工期が厳しい。」\nなどの意見が寄せられた。\n一定の効果や評価はあるものの、実施工事がまだ少ないため、継続して検証する必要がある。\nまた、地元建設企業が適正な利潤を確保し、雇用や設備投資につなげられる発注規模の見直しなど、新たな取組みも必要である。\n\n（２）経験豊富な技術職員の大量退職などにより技術力の低下が懸念されていることから、将来に亘り、技術職員の人材育成を継続し実施していく必要がある。","② 課題抑制","（１）生産性向上\n国や他都県市の動向を注視し、生産性向上の取組みを推進する。","技術管理課"]
[null,null,null,null,null,"モノ",null,null,"＜参考＞\n前年度決算額",null,null,"⑦ 資産活用","（２）人材育成\n建設局独自の技術職員人材育成プログラムの継続実施及び対象職員を拡充する。"]
[null,null,null,"他都市等の状況",null,"カネ","歳出予算額67百万円\n（うち一般財源67百万円）\n【主なもの】\n委託料45百万円\n使用料及び賃借料\n14百万円\nその他8百万円",67,"歳出決算額64百万円\n（うち一般財源64百万円）\n【主なもの】\n委託料43百万円\n使用料及び賃借料\n14百万円\nその他7百万円"]
[]
[]
["施策",null,null,"9-9-9",{"$f":"IF(D193=\"\",\"←施策番号を選択してください。\",VLOOKUP(D193,W227:X285,2,1))","v":"その他"},null,null,"下水道事業会計"]
["No.","新規","事務事業（業務）名","事務事業（業務）概要",null,"現状分析",null,null,null,"課題抽出",null,"今後の方向性",null,"所管課"]
[null,null,null,"目標（目的）","主な内容","事務事業（業務）に\n必要な行政資源",null,"コスト換算\n（単位：百万円）","行政コストの合計額\n（単位：百万円）","主な実績・効果","分析・評価","改善・改革の\n手法","今後の方向性"]
[null,null,null,"【（事務事業（業務）を行い）誰（何）が、どのような状態になることを目指すのか】","【サービス等の提供内容や提供先】",null,null,null,null,"【利用者数・件数等】","【現在どのような状態で、どのような課題があるのか】"]
["1",null,"下水道使用料賦課徴収事務","下水道使用料を、適正に賦課徴収することにより、下水道事業の健全な経営を目指す。","（提供内容）\n・下水道使用料の算定・調定に関する事務\n・下水道使用料の賦課・徴収事務\n・下水道使用料の収納金整理事務\n・下水道使用料の滞納整理事務\n（提供先）\n公共下水道利用者\n","ヒト","職員8.90人\n（正規7.70人、非常勤1.20人）",62,{"$f":"H197+H199","v":877},"下水道使用料収納率\n（各年度末（5月）時点）\n\n29年度　　　95.9％\n28年度　　　95.4％\n27年度　　　95.1％\n\n早期の財産調査及び差押え等の滞納整理の強化等により、平成29年度の収納率は、第2期財政健全化プランの目標値95.1％を達成する見込みである。","\n\n　下水道使用料収納率は年々向上しているものの、平成28年度末（5月時点）の収納率は政令指定都市20市中最下位である。\n　これは、本市以外の政令指定都市が上下水道料金の一括徴収を既に実施しており、水道料金と一括した請求をしているためである。\n　本市でも、他の政令指定都市並みの収納率の実現と住民サービスの向上のため、平成30年1月から千葉県水道局との徴収一元化を実施したことから、平成30年度以降は、収納率が向上する見込みである。\n　","⑧ その他","【現年度分の徴収対策】\n千葉県水道局への徴収業務委託により、上下水道料金の一括請求を引き続き実施していく。","下水道営業課"]
[null,null,null,null,null,"モノ","－","－","＜参考＞\n前年度決算額",null,null,"⑧ その他","【過年度分の徴収対策】\n厳正な滞納整理のために、早期に財産調査を行い、引き続き、差押え等の強化に努め、前年度を超える収納率を目指す。"]
[null,null,null,"他都市等の状況",null,"カネ","歳出予算額　815百万円\n【主なもの】\n上下水道料金徴収事務委託料（市水エリア）　190百万円\n上下水道料金システム開発費等負担金　105百万円\n千葉県水道局への徴収事務委託（県水エリア）   　497百万円\n（参考）\n歳入予算額　14,374百万円\n【下水道使用料】",815,"歳出決算額　858百万円\n【主なもの】\n上下水道料金徴収事務委託料　399百万円\n千葉県水道局への徴収事務委託  252百万円（県水エリアのシステム開発負担金、1月～3月委託料）\n（参考）\n歳入決算額　15,570百万円\n【下水道使用料】"]
[null,null,null,"関東圏内政令指定都市の下水道使用料収納率\n（Ｈ28年度末（5月）時点）\n川崎市　　　 99.4%\n横浜市　　　 99.3%\nさいたま市　98.8%\n相模原市    98.0%"]
[null,null,null,null,null,null,null,null,null,null,null,null,null,null,null,null,null,null,null,null,null,null,"2-2-1","子育て支援の充実"]
[null,null,null,null,null,null,null,null,null,null,null,null,null,null,null,null,null,null,null,null,null,null,"2-2-2","こどもの健全育成の推進"]
[null,null,null,null,null,null,null,null,null,null,null,null,null,null,null,null,null,null,null,null,null,null,"2-3-1","地域福祉の充実"]
[null,null,null,null,null,null,null,null,null,null,null,null,null,null,null,null,null,null,null,null,null,null,"2-4-1","介護予防と生きがいづくりの促進"]
[null,null,null,null,null,null,null,null,null,null,null,null,null,null,null,null,null,null,null,null,null,null,"2-4-2","地域生活支援の充実（高齢者）"]
[null,null,null,null,null,null,null,null,null,null,null,null,null,null,null,null,null,null,null,null,null,null,"2-4-3","介護保険サービスの充実"]
[null,null,null,null,null,null,null,null,null,null,null,null,null,null,null,null,null,null,null,null,null,null,"2-5-1","療育体制と相談支援の充実"]
[null,null,null,null,null,null,null,null,null,null,null,null,null,null,null,null,null,null,null,null,null,null,"2-5-2","地域生活支援の充実（障害のある人）"]
[null,null,null,null,null,null,null,null,null,null,null,null,null,null,null,null,null,null,null,null,null,null,"2-5-3","就労支援と社会参加の促進"]
[null,null,null,null,null,null,null,null,null,null,null,null,null,null,null,null,null,null,null,null,null,null,"3-1-1","学校教育の振興"]
[null,null,null,null,null,null,null,null,null,null,null,null,null,null,null,null,null,null,null,null,null,null,"3-1-2","地域の教育力の向上"]
[null,null,null,null,null,null,null,null,null,null,null,null,null,null,null,null,null,null,null,null,null,null,"3-1-3","こどもの参画の推進"]
[null,null,null,null,null,null,null,null,null,null,null,null,null,null,null,null,null,null,null,null,null,null,"3-2-1","生涯学習の推進"]
[null,null,null,null,null,null,null,null,null,null,null,null,null,null,null,null,null,null,null,null,null,null,"3-2-2","スポーツ・レクリエーション活動の推進"]
[null,null,null,null,null,null,null,null,null,null,null,null,null,null,null,null,null,null,null,null,null,null,"3-3-1","文化・芸術の振興"]
[null,null,null,null,null,null,null,null,null,null,null,null,null,null,null,null,null,null,null,null,null,null,"3-3-2","文化的財産の保全と活用"]
[null,null,null,null,null,null,null,null,null,null,null,null,null,null,null,null,null,null,null,null,null,null,"3-4-1","国際化の推進"]
[null,null,null,null,null,null,null,null,null,null,null,null,null,null,null,null,null,null,null,null,null,null,"3-4-2","大学・企業等との連携の推進"]
[null,null,null,null,null,null,null,null,null,null,null,null,null,null,null,null,null,null,null,null,null,null,"3-5-1","市民参加・協働の推進"]
[null,null,null,null,null,null,null,null,null,null,null,null,null,null,null,null,null,null,null,null,null,null,"3-5-2","男女共同参画の推進"]
[null,null,null,null,null,null,null,null,null,null,null,null,null,null,null,null,null,null,null,null,null,null,"4-1-1","防災対策の推進"]
[null,null,null,null,null,null,null,null,null,null,null,null,null,null,null,null,null,null,null,null,null,null,"4-1-2","防災体制の充実"]
[null,null,null,null,null,null,null,null,null,null,null,null,null,null,null,null,null,null,null,null,null,null,"4-1-3","消防・救急体制の充実"]
[null,null,null,null,null,null,null,null,null,null,null,null,null,null,null,null,null,null,null,null,null,null,"4-1-4","交通安全の推進"]
[null,null,null,null,null,null,null,null,null,null,null,null,null,null,null,null,null,null,null,null,null,null,"4-1-5","防犯対策の推進"]
[null,null,null,null,null,null,null,null,null,null,null,null,null,null,null,null,null,null,null,null,null,null,"4-1-6","消費生活の安定・向上"]
[null,null,null,null,null,null,null,null,null,null,null,null,null,null,null,null,null,null,null,null,null,null,"4-2-1","市街地の整備"]
[null,null,null,null,null,null,null,null,null,null,null,null,null,null,null,null,null,null,null,null,null,null,"4-2-2","計画的な土地利用の推進"]
[null,null,null,null,null,null,null,null,null,null,null,null,null,null,null,null,null,null,null,null,null,null,"4-2-3","良好な都市景観の形成"]
[null,null,null,null,null,null,null,null,null,null,null,null,null,null,null,null,null,null,null,null,null,null,"4-2-4","住宅・住環境の充実"]
[null,null,null,null,null,null,null,null,null,null,null,null,null,null,null,null,null,null,null,null,null,null,"4-2-5","生活基盤の充実"]
[null,null,null,null,null,null,null,null,null,null,null,null,null,null,null,null,null,null,null,null,null,null,"4-3-1","公共交通ネットワークの形成"]
[null,null,null,null,null,null,null,null,null,null,null,null,null,null,null,null,null,null,null,null,null,null,"4-3-2","道路ネットワークの形成"]
[null,null,null,null,null,null,null,null,null,null,null,null,null,null,null,null,null,null,null,null,null,null,"4-3-3","人にやさしい移動環境の創出"]
[null,null,null,null,null,null,null,null,null,null,null,null,null,null,null,null,null,null,null,null,null,null,"4-3-4","ＩＣＴを活かした利便性の向上"]
[null,null,null,null,null,null,null,null,null,null,null,null,null,null,null,null,null,null,null,null,null,null,"5-1-1","都心などの魅力向上"]
[null,null,null,null,null,null,null,null,null,null,null,null,null,null,null,null,null,null,null,null,null,null,"5-1-2","都市の国際性の向上"]
[null,null,null,null,null,null,null,null,null,null,null,null,null,null,null,null,null,null,null,null,null,null,"5-1-3","観光の振興と魅力の創出・発信"]
[null,null,null,null,null,null,null,null,null,null,null,null,null,null,null,null,null,null,null,null,null,null,"5-2-1","産業の振興"]
[null,null,null,null,null,null,null,null,null,null,null,null,null,null,null,null,null,null,null,null,null,null,"5-2-2","新事業の創出"]
[null,null,null,null,null,null,null,null,null,null,null,null,null,null,null,null,null,null,null,null,null,null,"5-2-3","商業・サービス産業の振興"]
[null,null,null,null,null,null,null,null,null,null,null,null,null,null,null,null,null,null,null,null,null,null,"5-2-4","物流・港湾機能の強化"]
[null,null,null,null,null,null,null,null,null,null,null,null,null,null,null,null,null,null,null,null,null,null,"5-2-5","勤労者の支援と雇用の創出"]
[null,null,null,null,null,null,null,null,null,null,null,null,null,null,null,null,null,null,null,null,null,null,"5-3-1","新鮮で安全・安心な農畜産物の安定供給"]
[null,null,null,null,null,null,null,null,null,null,null,null,null,null,null,null,null,null,null,null,null,null,"5-3-2","安定した農業経営体の育成"]
[null,null,null,null,null,null,null,null,null,null,null,null,null,null,null,null,null,null,null,null,null,null,"5-3-3","農村と森林の持つ多面的機能の活用"]
[null,null,null,null,null,null,null,null,null,null,null,null,null,null,null,null,null,null,null,null,null,null,"9-9-9","その他"]